﻿Body Name,Supp ID,,Supplier Name,Service Area Category,Supp Grp,Period,Invoice Date,TT,Unique Invoice Reference ,,Inv Amount,Account,Expenditure Description ,Cost C,Cost Centre Name,Posted Amount
Nottinghamshire Fire and Rescue Service ,101782,Derbyshire Fire Authority,Derbyshire Fire Authority,Operational Responses,4,202403,09/06/2023,P6,9106769,"-17,629.82 ","17,629.82 ",1001,Admin Pay,2005,Fire Control,152.74 
Nottinghamshire Fire and Rescue Service ,101001,Express Recruitment Ltd,Express Recruitment Ltd,Management & Support Services,1,202403,24/05/2023,P6,9106578,-742.83 ,742.83 ,1005,Admin Agency Staff,2087,Estates Department (Previously Premises),619.02 
Nottinghamshire Fire and Rescue Service ,101001,Express Recruitment Ltd,Express Recruitment Ltd,Management & Support Services,1,202403,07/06/2023,P6,9106764,-600.00 ,600.00 ,1005,Admin Agency Staff,2087,Estates Department (Previously Premises),500.00 
Nottinghamshire Fire and Rescue Service ,101001,Express Recruitment Ltd,Express Recruitment Ltd,Management & Support Services,1,202403,07/06/2023,P6,9106827,-282.25 ,282.25 ,1005,Admin Agency Staff,2087,Estates Department (Previously Premises),235.21 
Nottinghamshire Fire and Rescue Service ,103874,Reflect Recruitment Group Limited,Reflect Recruitment Group Limited,Management & Support Services,5,202403,19/06/2023,P6,9106946,-924.41 ,924.41 ,1005,Admin Agency Staff,2058,HR Support,770.34 
Nottinghamshire Fire and Rescue Service ,103874,Reflect Recruitment Group Limited,Reflect Recruitment Group Limited,Management & Support Services,5,202403,26/06/2023,P6,9107013,-924.41 ,924.41 ,1005,Admin Agency Staff,2058,HR Support,770.34 
Nottinghamshire Fire and Rescue Service ,103341,Trauma & Resuscitation Services Limited,Trauma & Resuscitation Services Limited,Management & Support Services,5,202403,24/04/2023,P6,9106667,-720.00 ,720.00 ,1801,Training,2059,Corporate Training,600.00 
Nottinghamshire Fire and Rescue Service ,103646,Martyn Humphreys - Gwyndwr Rescue Safety & Training,Martyn Humphreys - Gwyndwr Rescue Safety & Training,Management & Support Services,5,202403,11/05/2023,P6,9106699,-800.00 ,800.00 ,1801,Training,2059,Corporate Training,800.00 
Nottinghamshire Fire and Rescue Service ,101805,The Stationery Office Ltd,The Stationery Office Ltd,Management & Support Services,1,202403,11/05/2023,P6,9106908,-550.00 ,550.00 ,1801,Training,2059,Corporate Training,550.00 
Nottinghamshire Fire and Rescue Service ,100778,Fire Service College Ltd,Fire Service College Ltd,Management & Support Services,4,202403,06/06/2023,P6,9106911,"-6,048.00 ","6,048.00 ",1801,Training,2059,Corporate Training,"5,040.00 "
Nottinghamshire Fire and Rescue Service ,100212,Driving Standards Agency,Driving Standards Agency,Management & Support Services,4,202403,22/06/2023,P6,9106916,"-7,500.00 ","7,500.00 ",1801,Training,2059,Corporate Training,"6,250.00 "
Nottinghamshire Fire and Rescue Service ,104038,Green Risk Assessment Ltd,Green Risk Assessment Ltd,Operational Responses,5,202403,18/06/2023,P6,9106956,"-1,437.60 ","1,437.60 ",1801,Training,2013,Service Delivery,"1,198.00 "
Nottinghamshire Fire and Rescue Service ,103197,Legal Experience Training Limited,Legal Experience Training Limited,"Statutory Inspection, Certification & Enforcement",5,202403,29/06/2023,P6,9107049,"-2,288.22 ","2,288.22 ",1801,Training,2021,Fire Protection,"1,906.85 "
Nottinghamshire Fire and Rescue Service ,102316,Whitby & Co,Whitby & Co,Management & Support Services,1,202403,25/05/2023,P6,9106577,"-1,364.66 ","1,364.66 ",1811,Retirement/ Long Service Awards,2086,Procurement,"1,107.22 "
Nottinghamshire Fire and Rescue Service ,102316,Whitby & Co,Whitby & Co,Management & Support Services,1,202403,25/05/2023,P6,9106577,"-1,364.66 ","1,364.66 ",1811,Retirement/ Long Service Awards,2093,Command Suite,30.00 
Nottinghamshire Fire and Rescue Service ,103377,Flat Fee Recruiter Limited,Flat Fee Recruiter Limited,Management & Support Services,5,202403,30/05/2023,P6,9106549,-322.80 ,322.80 ,1850,Recruitment Advertising,2075,Service Support Hub,269.00 
Nottinghamshire Fire and Rescue Service ,100125,Nottinghamshire County Council,Nottinghamshire County Council,Management & Support Services,1,202403,06/06/2023,P6,9106710,-538.20 ,538.20 ,1850,Recruitment Advertising,2075,Service Support Hub,448.50 
Nottinghamshire Fire and Rescue Service ,103377,Flat Fee Recruiter Limited,Flat Fee Recruiter Limited,Management & Support Services,5,202403,23/06/2023,P6,9106993,-322.80 ,322.80 ,1850,Recruitment Advertising,2049,Professional Support,269.00 
Nottinghamshire Fire and Rescue Service ,103377,Flat Fee Recruiter Limited,Flat Fee Recruiter Limited,Management & Support Services,5,202403,26/06/2023,P6,9106995,-358.80 ,358.80 ,1850,Recruitment Advertising,2049,Professional Support,299.00 
Nottinghamshire Fire and Rescue Service ,103923,Bupa UK Insurance Services,Bupa UK Insurance Services,Management & Support Services,5,202403,30/05/2023,P6,9106550,"-3,320.40 ","3,320.40 ",1860,Employee Benefits Schemes,2075,Service Support Hub,"3,320.40 "
Nottinghamshire Fire and Rescue Service ,102874,NCC Pension Fund,NCC Pension Fund,Operational Responses,1,202403,28/06/2023,P6,9106957,"-1,841.48 ","1,841.48 ",1906,Local Government Pension Strain,2074,Operational Training,"1,841.48 "
Nottinghamshire Fire and Rescue Service ,100113,PPL PRS Ltd,PPL PRS Ltd,Operational Responses,1,202403,17/05/2023,P6,9106672,"-3,360.71 ","3,360.71 ",2000,Buildings Repairs and Maintenance - Reactive,1001,Mansfield,215.43 
Nottinghamshire Fire and Rescue Service ,100113,PPL PRS Ltd,PPL PRS Ltd,Operational Responses,1,202403,17/05/2023,P6,9106672,"-3,360.71 ","3,360.71 ",2000,Buildings Repairs and Maintenance - Reactive,1003,London Road,215.43 
Nottinghamshire Fire and Rescue Service ,100113,PPL PRS Ltd,PPL PRS Ltd,Operational Responses,1,202403,17/05/2023,P6,9106672,"-3,360.71 ","3,360.71 ",2000,Buildings Repairs and Maintenance - Reactive,1005,Ashfield,215.43 
Nottinghamshire Fire and Rescue Service ,100113,PPL PRS Ltd,PPL PRS Ltd,Operational Responses,1,202403,17/05/2023,P6,9106672,"-3,360.71 ","3,360.71 ",2000,Buildings Repairs and Maintenance - Reactive,1006,Edwinstowe,215.43 
Nottinghamshire Fire and Rescue Service ,100113,PPL PRS Ltd,PPL PRS Ltd,Operational Responses,1,202403,17/05/2023,P6,9106672,"-3,360.71 ","3,360.71 ",2000,Buildings Repairs and Maintenance - Reactive,1012,Retford,215.43 
Nottinghamshire Fire and Rescue Service ,100113,PPL PRS Ltd,PPL PRS Ltd,Operational Responses,1,202403,17/05/2023,P6,9106672,"-3,360.71 ","3,360.71 ",2000,Buildings Repairs and Maintenance - Reactive,1016,Newark,215.43 
Nottinghamshire Fire and Rescue Service ,100113,PPL PRS Ltd,PPL PRS Ltd,Operational Responses,1,202403,17/05/2023,P6,9106672,"-3,360.71 ","3,360.71 ",2000,Buildings Repairs and Maintenance - Reactive,1019,West Bridgford,215.43 
Nottinghamshire Fire and Rescue Service ,100113,PPL PRS Ltd,PPL PRS Ltd,Operational Responses,1,202403,17/05/2023,P6,9106672,"-3,360.71 ","3,360.71 ",2000,Buildings Repairs and Maintenance - Reactive,1020,Stockhill,215.43 
Nottinghamshire Fire and Rescue Service ,100113,PPL PRS Ltd,PPL PRS Ltd,Operational Responses,1,202403,17/05/2023,P6,9106672,"-3,360.71 ","3,360.71 ",2000,Buildings Repairs and Maintenance - Reactive,1026,Arnold,215.43 
Nottinghamshire Fire and Rescue Service ,100113,PPL PRS Ltd,PPL PRS Ltd,Operational Responses,1,202403,17/05/2023,P6,9106672,"-3,360.71 ","3,360.71 ",2000,Buildings Repairs and Maintenance - Reactive,1027,Carlton,215.43 
Nottinghamshire Fire and Rescue Service ,100113,PPL PRS Ltd,PPL PRS Ltd,Operational Responses,1,202403,17/05/2023,P6,9106672,"-3,360.71 ","3,360.71 ",2000,Buildings Repairs and Maintenance - Reactive,1029,Highfields Station,215.43 
Nottinghamshire Fire and Rescue Service ,100113,PPL PRS Ltd,PPL PRS Ltd,Management & Support Services,1,202403,17/05/2023,P6,9106672,"-3,360.71 ","3,360.71 ",2000,Buildings Repairs and Maintenance - Reactive,1030,Service Development Centre,215.43 
Nottinghamshire Fire and Rescue Service ,100113,PPL PRS Ltd,PPL PRS Ltd,Management & Support Services,1,202403,17/05/2023,P6,9106672,"-3,360.71 ","3,360.71 ",2000,Buildings Repairs and Maintenance - Reactive,1035,Headquarters,215.43 
Nottinghamshire Fire and Rescue Service ,100113,PPL PRS Ltd,PPL PRS Ltd,Operational Responses,1,202403,02/06/2023,P6,9106833,"-3,284.08 ","3,284.08 ",2000,Buildings Repairs and Maintenance - Reactive,1001,Mansfield,215.43 
Nottinghamshire Fire and Rescue Service ,100113,PPL PRS Ltd,PPL PRS Ltd,Operational Responses,1,202403,02/06/2023,P6,9106833,"-3,284.08 ","3,284.08 ",2000,Buildings Repairs and Maintenance - Reactive,1003,London Road,36.90 
Nottinghamshire Fire and Rescue Service ,100113,PPL PRS Ltd,PPL PRS Ltd,Operational Responses,1,202403,02/06/2023,P6,9106833,"-3,284.08 ","3,284.08 ",2000,Buildings Repairs and Maintenance - Reactive,1005,Ashfield,215.43 
Nottinghamshire Fire and Rescue Service ,100113,PPL PRS Ltd,PPL PRS Ltd,Operational Responses,1,202403,02/06/2023,P6,9106833,"-3,284.08 ","3,284.08 ",2000,Buildings Repairs and Maintenance - Reactive,1006,Edwinstowe,215.43 
Nottinghamshire Fire and Rescue Service ,100113,PPL PRS Ltd,PPL PRS Ltd,Operational Responses,1,202403,02/06/2023,P6,9106833,"-3,284.08 ","3,284.08 ",2000,Buildings Repairs and Maintenance - Reactive,1008,Worksop,80.73 
Nottinghamshire Fire and Rescue Service ,100113,PPL PRS Ltd,PPL PRS Ltd,Operational Responses,1,202403,02/06/2023,P6,9106833,"-3,284.08 ","3,284.08 ",2000,Buildings Repairs and Maintenance - Reactive,1008,Worksop,447.73 
Nottinghamshire Fire and Rescue Service ,100113,PPL PRS Ltd,PPL PRS Ltd,Operational Responses,1,202403,02/06/2023,P6,9106833,"-3,284.08 ","3,284.08 ",2000,Buildings Repairs and Maintenance - Reactive,1012,Retford,215.43 
Nottinghamshire Fire and Rescue Service ,100113,PPL PRS Ltd,PPL PRS Ltd,Operational Responses,1,202403,02/06/2023,P6,9106833,"-3,284.08 ","3,284.08 ",2000,Buildings Repairs and Maintenance - Reactive,1016,Newark,215.43 
Nottinghamshire Fire and Rescue Service ,100113,PPL PRS Ltd,PPL PRS Ltd,Operational Responses,1,202403,02/06/2023,P6,9106833,"-3,284.08 ","3,284.08 ",2000,Buildings Repairs and Maintenance - Reactive,1019,West Bridgford,215.43 
Nottinghamshire Fire and Rescue Service ,100113,PPL PRS Ltd,PPL PRS Ltd,Operational Responses,1,202403,02/06/2023,P6,9106833,"-3,284.08 ","3,284.08 ",2000,Buildings Repairs and Maintenance - Reactive,1020,Stockhill,215.43 
Nottinghamshire Fire and Rescue Service ,100113,PPL PRS Ltd,PPL PRS Ltd,Operational Responses,1,202403,02/06/2023,P6,9106833,"-3,284.08 ","3,284.08 ",2000,Buildings Repairs and Maintenance - Reactive,1026,Arnold,215.43 
Nottinghamshire Fire and Rescue Service ,100113,PPL PRS Ltd,PPL PRS Ltd,Operational Responses,1,202403,02/06/2023,P6,9106833,"-3,284.08 ","3,284.08 ",2000,Buildings Repairs and Maintenance - Reactive,1027,Carlton,215.43 
Nottinghamshire Fire and Rescue Service ,100113,PPL PRS Ltd,PPL PRS Ltd,Operational Responses,1,202403,02/06/2023,P6,9106833,"-3,284.08 ","3,284.08 ",2000,Buildings Repairs and Maintenance - Reactive,1029,Highfields Station,215.43 
Nottinghamshire Fire and Rescue Service ,100113,PPL PRS Ltd,PPL PRS Ltd,Management & Support Services,1,202403,02/06/2023,P6,9106833,"-3,284.08 ","3,284.08 ",2000,Buildings Repairs and Maintenance - Reactive,1030,Service Development Centre,215.43 
Nottinghamshire Fire and Rescue Service ,100113,PPL PRS Ltd,PPL PRS Ltd,Management & Support Services,1,202403,02/06/2023,P6,9106833,"-3,284.08 ","3,284.08 ",2000,Buildings Repairs and Maintenance - Reactive,2087,Estates Department (Previously Premises),-198.40 
Nottinghamshire Fire and Rescue Service ,100113,PPL PRS Ltd,PPL PRS Ltd,Operational Responses,1,202403,17/05/2023,P6,9106597,"3,619.23 ","-3,619.23 ",2000,Buildings Repairs and Maintenance - Reactive,1001,Mansfield,-215.43 
Nottinghamshire Fire and Rescue Service ,100113,PPL PRS Ltd,PPL PRS Ltd,Operational Responses,1,202403,17/05/2023,P6,9106597,"3,619.23 ","-3,619.23 ",2000,Buildings Repairs and Maintenance - Reactive,1003,London Road,-215.43 
Nottinghamshire Fire and Rescue Service ,100113,PPL PRS Ltd,PPL PRS Ltd,Operational Responses,1,202403,17/05/2023,P6,9106597,"3,619.23 ","-3,619.23 ",2000,Buildings Repairs and Maintenance - Reactive,1005,Ashfield,-215.43 
Nottinghamshire Fire and Rescue Service ,100113,PPL PRS Ltd,PPL PRS Ltd,Operational Responses,1,202403,17/05/2023,P6,9106597,"3,619.23 ","-3,619.23 ",2000,Buildings Repairs and Maintenance - Reactive,1008,Worksop,-215.43 
Nottinghamshire Fire and Rescue Service ,100113,PPL PRS Ltd,PPL PRS Ltd,Operational Responses,1,202403,17/05/2023,P6,9106597,"3,619.23 ","-3,619.23 ",2000,Buildings Repairs and Maintenance - Reactive,1012,Retford,-215.43 
Nottinghamshire Fire and Rescue Service ,100113,PPL PRS Ltd,PPL PRS Ltd,Operational Responses,1,202403,17/05/2023,P6,9106597,"3,619.23 ","-3,619.23 ",2000,Buildings Repairs and Maintenance - Reactive,1016,Newark,-215.43 
Nottinghamshire Fire and Rescue Service ,100113,PPL PRS Ltd,PPL PRS Ltd,Operational Responses,1,202403,17/05/2023,P6,9106597,"3,619.23 ","-3,619.23 ",2000,Buildings Repairs and Maintenance - Reactive,1019,West Bridgford,-215.43 
Nottinghamshire Fire and Rescue Service ,100113,PPL PRS Ltd,PPL PRS Ltd,Operational Responses,1,202403,17/05/2023,P6,9106597,"3,619.23 ","-3,619.23 ",2000,Buildings Repairs and Maintenance - Reactive,1020,Stockhill,-215.43 
Nottinghamshire Fire and Rescue Service ,100113,PPL PRS Ltd,PPL PRS Ltd,Operational Responses,1,202403,17/05/2023,P6,9106597,"3,619.23 ","-3,619.23 ",2000,Buildings Repairs and Maintenance - Reactive,1026,Arnold,-215.43 
Nottinghamshire Fire and Rescue Service ,100113,PPL PRS Ltd,PPL PRS Ltd,Operational Responses,1,202403,17/05/2023,P6,9106597,"3,619.23 ","-3,619.23 ",2000,Buildings Repairs and Maintenance - Reactive,1027,Carlton,-215.43 
Nottinghamshire Fire and Rescue Service ,100113,PPL PRS Ltd,PPL PRS Ltd,Operational Responses,1,202403,17/05/2023,P6,9106597,"3,619.23 ","-3,619.23 ",2000,Buildings Repairs and Maintenance - Reactive,1029,Highfields Station,-215.43 
Nottinghamshire Fire and Rescue Service ,100113,PPL PRS Ltd,PPL PRS Ltd,Management & Support Services,1,202403,17/05/2023,P6,9106597,"3,619.23 ","-3,619.23 ",2000,Buildings Repairs and Maintenance - Reactive,1030,Service Development Centre,-215.43 
Nottinghamshire Fire and Rescue Service ,100113,PPL PRS Ltd,PPL PRS Ltd,Management & Support Services,1,202403,17/05/2023,P6,9106597,"3,619.23 ","-3,619.23 ",2000,Buildings Repairs and Maintenance - Reactive,1035,Headquarters,-215.43 
Nottinghamshire Fire and Rescue Service ,100113,PPL PRS Ltd,PPL PRS Ltd,Operational Responses,1,202403,01/06/2023,P6,9106932,"3,360.71 ","-3,360.71 ",2000,Buildings Repairs and Maintenance - Reactive,1001,Mansfield,-215.43 
Nottinghamshire Fire and Rescue Service ,100113,PPL PRS Ltd,PPL PRS Ltd,Operational Responses,1,202403,01/06/2023,P6,9106932,"3,360.71 ","-3,360.71 ",2000,Buildings Repairs and Maintenance - Reactive,1003,London Road,-215.43 
Nottinghamshire Fire and Rescue Service ,100113,PPL PRS Ltd,PPL PRS Ltd,Operational Responses,1,202403,01/06/2023,P6,9106932,"3,360.71 ","-3,360.71 ",2000,Buildings Repairs and Maintenance - Reactive,1005,Ashfield,-215.43 
Nottinghamshire Fire and Rescue Service ,100113,PPL PRS Ltd,PPL PRS Ltd,Operational Responses,1,202403,01/06/2023,P6,9106932,"3,360.71 ","-3,360.71 ",2000,Buildings Repairs and Maintenance - Reactive,1006,Edwinstowe,-215.43 
Nottinghamshire Fire and Rescue Service ,100113,PPL PRS Ltd,PPL PRS Ltd,Operational Responses,1,202403,01/06/2023,P6,9106932,"3,360.71 ","-3,360.71 ",2000,Buildings Repairs and Maintenance - Reactive,1012,Retford,-215.43 
Nottinghamshire Fire and Rescue Service ,100113,PPL PRS Ltd,PPL PRS Ltd,Operational Responses,1,202403,01/06/2023,P6,9106932,"3,360.71 ","-3,360.71 ",2000,Buildings Repairs and Maintenance - Reactive,1016,Newark,-215.43 
Nottinghamshire Fire and Rescue Service ,100113,PPL PRS Ltd,PPL PRS Ltd,Operational Responses,1,202403,01/06/2023,P6,9106932,"3,360.71 ","-3,360.71 ",2000,Buildings Repairs and Maintenance - Reactive,1019,West Bridgford,-215.43 
Nottinghamshire Fire and Rescue Service ,100113,PPL PRS Ltd,PPL PRS Ltd,Operational Responses,1,202403,01/06/2023,P6,9106932,"3,360.71 ","-3,360.71 ",2000,Buildings Repairs and Maintenance - Reactive,1020,Stockhill,-215.43 
Nottinghamshire Fire and Rescue Service ,100113,PPL PRS Ltd,PPL PRS Ltd,Operational Responses,1,202403,01/06/2023,P6,9106932,"3,360.71 ","-3,360.71 ",2000,Buildings Repairs and Maintenance - Reactive,1026,Arnold,-215.43 
Nottinghamshire Fire and Rescue Service ,100113,PPL PRS Ltd,PPL PRS Ltd,Operational Responses,1,202403,01/06/2023,P6,9106932,"3,360.71 ","-3,360.71 ",2000,Buildings Repairs and Maintenance - Reactive,1027,Carlton,-215.43 
Nottinghamshire Fire and Rescue Service ,100113,PPL PRS Ltd,PPL PRS Ltd,Operational Responses,1,202403,01/06/2023,P6,9106932,"3,360.71 ","-3,360.71 ",2000,Buildings Repairs and Maintenance - Reactive,1029,Highfields Station,-215.43 
Nottinghamshire Fire and Rescue Service ,100113,PPL PRS Ltd,PPL PRS Ltd,Management & Support Services,1,202403,01/06/2023,P6,9106932,"3,360.71 ","-3,360.71 ",2000,Buildings Repairs and Maintenance - Reactive,1030,Service Development Centre,-215.43 
Nottinghamshire Fire and Rescue Service ,100113,PPL PRS Ltd,PPL PRS Ltd,Management & Support Services,1,202403,01/06/2023,P6,9106932,"3,360.71 ","-3,360.71 ",2000,Buildings Repairs and Maintenance - Reactive,1035,Headquarters,-215.43 
Nottinghamshire Fire and Rescue Service ,101767,Cathedral Leasing Limited,Cathedral Leasing Limited,Management & Support Services,1,202403,01/06/2023,P6,9106725,"-3,715.20 ","3,715.20 ",2050,Building Maintenance - Planned,2087,Estates Department (Previously Premises),"3,096.00 "
Nottinghamshire Fire and Rescue Service ,102280,Amptron Electrical Services,Amptron Electrical Services,Operational Responses,1,202403,30/05/2023,P6,9106980,"-11,985.02 ","11,985.02 ",2050,Building Maintenance - Planned,1003,London Road,656.25 
Nottinghamshire Fire and Rescue Service ,102280,Amptron Electrical Services,Amptron Electrical Services,Operational Responses,1,202403,30/05/2023,P6,9106980,"-11,985.02 ","11,985.02 ",2050,Building Maintenance - Planned,1005,Ashfield,"1,149.26 "
Nottinghamshire Fire and Rescue Service ,102280,Amptron Electrical Services,Amptron Electrical Services,Operational Responses,1,202403,30/05/2023,P6,9106980,"-11,985.02 ","11,985.02 ",2050,Building Maintenance - Planned,1006,Edwinstowe,"1,149.26 "
Nottinghamshire Fire and Rescue Service ,102280,Amptron Electrical Services,Amptron Electrical Services,Operational Responses,1,202403,30/05/2023,P6,9106980,"-11,985.02 ","11,985.02 ",2050,Building Maintenance - Planned,1020,Stockhill,"1,149.25 "
Nottinghamshire Fire and Rescue Service ,102280,Amptron Electrical Services,Amptron Electrical Services,Operational Responses,1,202403,30/05/2023,P6,9106980,"-11,985.02 ","11,985.02 ",2050,Building Maintenance - Planned,1027,Carlton,"4,734.25 "
Nottinghamshire Fire and Rescue Service ,102280,Amptron Electrical Services,Amptron Electrical Services,Management & Support Services,1,202403,30/05/2023,P6,9106980,"-11,985.02 ","11,985.02 ",2050,Building Maintenance - Planned,1030,Service Development Centre,"1,149.25 "
Nottinghamshire Fire and Rescue Service ,102744,EDF Energy,EDF Energy,Operational Responses,1,202403,31/03/2023,P6,9106799,-409.47 ,409.47 ,2100,Electricity,1008,Worksop,341.23 
Nottinghamshire Fire and Rescue Service ,102744,EDF Energy,EDF Energy,Prevention & Education,1,202403,03/06/2023,P6,9106800,"-2,179.92 ","2,179.92 ",2100,Electricity,1036,Clifton Community Safety Centre,11.79 
Nottinghamshire Fire and Rescue Service ,102744,EDF Energy,EDF Energy,Prevention & Education,1,202403,03/06/2023,P6,9106800,"-2,179.92 ","2,179.92 ",2100,Electricity,1036,Clifton Community Safety Centre,"1,806.78 "
Nottinghamshire Fire and Rescue Service ,102744,EDF Energy,EDF Energy,Operational Responses,1,202403,06/06/2023,P6,9106805,"-19,204.99 ","19,204.99 ",2100,Electricity,1003,London Road,"2,625.07 "
Nottinghamshire Fire and Rescue Service ,102744,EDF Energy,EDF Energy,Operational Responses,1,202403,06/06/2023,P6,9106805,"-19,204.99 ","19,204.99 ",2100,Electricity,1012,Retford,"2,167.73 "
Nottinghamshire Fire and Rescue Service ,102744,EDF Energy,EDF Energy,Operational Responses,1,202403,06/06/2023,P6,9106805,"-19,204.99 ","19,204.99 ",2100,Electricity,1016,Newark,"1,376.48 "
Nottinghamshire Fire and Rescue Service ,102744,EDF Energy,EDF Energy,Operational Responses,1,202403,06/06/2023,P6,9106805,"-19,204.99 ","19,204.99 ",2100,Electricity,1027,Carlton,"2,811.16 "
Nottinghamshire Fire and Rescue Service ,102744,EDF Energy,EDF Energy,Operational Responses,1,202403,06/06/2023,P6,9106805,"-19,204.99 ","19,204.99 ",2100,Electricity,1029,Highfields Station,"4,876.65 "
Nottinghamshire Fire and Rescue Service ,102744,EDF Energy,EDF Energy,Management & Support Services,1,202403,06/06/2023,P6,9106805,"-19,204.99 ","19,204.99 ",2100,Electricity,1030,Service Development Centre,"2,309.59 "
Nottinghamshire Fire and Rescue Service ,102744,EDF Energy,EDF Energy,Management & Support Services,1,202403,06/06/2023,P6,9106805,"-19,204.99 ","19,204.99 ",2100,Electricity,1035,Headquarters,-162.52 
Nottinghamshire Fire and Rescue Service ,102744,EDF Energy,EDF Energy,Operational Responses,1,202403,01/06/2023,P6,9106806,-619.22 ,619.22 ,2100,Electricity,1015,Collingham,516.02 
Nottinghamshire Fire and Rescue Service ,102744,EDF Energy,EDF Energy,Operational Responses,1,202403,01/06/2023,P6,9106807,-808.55 ,808.55 ,2100,Electricity,1013,Tuxford,673.79 
Nottinghamshire Fire and Rescue Service ,102744,EDF Energy,EDF Energy,Operational Responses,1,202403,01/06/2023,P6,9106809,"-2,004.50 ","2,004.50 ",2100,Electricity,1026,Arnold,"1,670.42 "
Nottinghamshire Fire and Rescue Service ,102744,EDF Energy,EDF Energy,Operational Responses,1,202403,01/06/2023,P6,9106810,-428.10 ,428.10 ,2100,Electricity,1014,Southwell,407.71 
Nottinghamshire Fire and Rescue Service ,102744,EDF Energy,EDF Energy,Operational Responses,1,202403,01/06/2023,P6,9106811,-342.09 ,342.09 ,2100,Electricity,1002,Blidworth,0.85 
Nottinghamshire Fire and Rescue Service ,102744,EDF Energy,EDF Energy,Operational Responses,1,202403,01/06/2023,P6,9106811,-342.09 ,342.09 ,2100,Electricity,1002,Blidworth,324.99 
Nottinghamshire Fire and Rescue Service ,102744,EDF Energy,EDF Energy,Operational Responses,1,202403,02/06/2023,P6,9106812,-539.56 ,539.56 ,2100,Electricity,1014,Southwell,449.63 
Nottinghamshire Fire and Rescue Service ,102744,EDF Energy,EDF Energy,Operational Responses,1,202403,02/06/2023,P6,9106813,"-1,346.01 ","1,346.01 ",2100,Electricity,1017,Bingham,5.78 
Nottinghamshire Fire and Rescue Service ,102744,EDF Energy,EDF Energy,Operational Responses,1,202403,02/06/2023,P6,9106813,"-1,346.01 ","1,346.01 ",2100,Electricity,1017,Bingham,"1,116.86 "
Nottinghamshire Fire and Rescue Service ,102744,EDF Energy,EDF Energy,Operational Responses,1,202403,03/06/2023,P6,9106814,"-3,272.31 ","3,272.31 ",2100,Electricity,1006,Edwinstowe,"2,726.93 "
Nottinghamshire Fire and Rescue Service ,102744,EDF Energy,EDF Energy,Operational Responses,1,202403,03/06/2023,P6,9106815,"-7,269.27 ","7,269.27 ",2100,Electricity,1020,Stockhill,4.17 
Nottinghamshire Fire and Rescue Service ,102744,EDF Energy,EDF Energy,Operational Responses,1,202403,03/06/2023,P6,9106815,"-7,269.27 ","7,269.27 ",2100,Electricity,1020,Stockhill,"6,054.25 "
Nottinghamshire Fire and Rescue Service ,102744,EDF Energy,EDF Energy,Operational Responses,1,202403,03/06/2023,P6,9106816,"-6,570.94 ","6,570.94 ",2100,Electricity,1023,Stapleford,"5,475.79 "
Nottinghamshire Fire and Rescue Service ,102744,EDF Energy,EDF Energy,Operational Responses,1,202403,31/05/2023,P6,9106817,-564.04 ,564.04 ,2100,Electricity,1028,East Leake,0.25 
Nottinghamshire Fire and Rescue Service ,102744,EDF Energy,EDF Energy,Operational Responses,1,202403,31/05/2023,P6,9106817,-564.04 ,564.04 ,2100,Electricity,1028,East Leake,469.82 
Nottinghamshire Fire and Rescue Service ,102744,EDF Energy,EDF Energy,Operational Responses,1,202403,26/05/2023,P6,9106818,"-2,711.10 ","2,711.10 ",2100,Electricity,1008,Worksop,"2,259.25 "
Nottinghamshire Fire and Rescue Service ,102744,EDF Energy,EDF Energy,Operational Responses,1,202403,31/05/2023,P6,9106819,-606.81 ,606.81 ,2100,Electricity,1015,Collingham,0.27 
Nottinghamshire Fire and Rescue Service ,102744,EDF Energy,EDF Energy,Operational Responses,1,202403,31/05/2023,P6,9106819,-606.81 ,606.81 ,2100,Electricity,1015,Collingham,505.45 
Nottinghamshire Fire and Rescue Service ,102744,EDF Energy,EDF Energy,Operational Responses,1,202403,31/05/2023,P6,9106820,-518.43 ,518.43 ,2100,Electricity,1028,East Leake,432.02 
Nottinghamshire Fire and Rescue Service ,102744,EDF Energy,EDF Energy,Operational Responses,1,202403,31/05/2023,P6,9106821,-557.32 ,557.32 ,2100,Electricity,1015,Collingham,464.43 
Nottinghamshire Fire and Rescue Service ,102744,EDF Energy,EDF Energy,Operational Responses,1,202403,31/05/2023,P6,9106822,-454.22 ,454.22 ,2100,Electricity,1028,East Leake,378.52 
Nottinghamshire Fire and Rescue Service ,102744,EDF Energy,EDF Energy,Operational Responses,1,202403,01/06/2023,P6,9106823,-409.68 ,409.68 ,2100,Electricity,1014,Southwell,1.09 
Nottinghamshire Fire and Rescue Service ,102744,EDF Energy,EDF Energy,Operational Responses,1,202403,01/06/2023,P6,9106823,-409.68 ,409.68 ,2100,Electricity,1014,Southwell,340.49 
Nottinghamshire Fire and Rescue Service ,102744,EDF Energy,EDF Energy,Operational Responses,1,202403,01/06/2023,P6,9106825,"-2,411.03 ","2,411.03 ",2100,Electricity,1008,Worksop,"2,009.20 "
Nottinghamshire Fire and Rescue Service ,102744,EDF Energy,EDF Energy,Operational Responses,1,202403,08/06/2023,P6,9106826,"-1,447.05 ","1,447.05 ",2100,Electricity,1011,Misterton,1.20 
Nottinghamshire Fire and Rescue Service ,102744,EDF Energy,EDF Energy,Operational Responses,1,202403,08/06/2023,P6,9106826,"-1,447.05 ","1,447.05 ",2100,Electricity,1011,Misterton,"1,204.88 "
Nottinghamshire Fire and Rescue Service ,102744,EDF Energy,EDF Energy,Operational Responses,1,202403,12/06/2023,P6,9106969,"-1,198.16 ","1,198.16 ",2100,Electricity,1001,Mansfield,15.94 
Nottinghamshire Fire and Rescue Service ,102744,EDF Energy,EDF Energy,Operational Responses,1,202403,12/06/2023,P6,9106969,"-1,198.16 ","1,198.16 ",2100,Electricity,1001,Mansfield,985.18 
Nottinghamshire Fire and Rescue Service ,102744,EDF Energy,EDF Energy,Operational Responses,1,202403,12/06/2023,P6,9106970,"-2,004.66 ","2,004.66 ",2100,Electricity,1001,Mansfield,"1,670.55 "
Nottinghamshire Fire and Rescue Service ,102744,EDF Energy,EDF Energy,Operational Responses,1,202403,12/06/2023,P6,9106971,"-2,068.56 ","2,068.56 ",2100,Electricity,1001,Mansfield,"1,723.80 "
Nottinghamshire Fire and Rescue Service ,102744,EDF Energy,EDF Energy,Operational Responses,1,202403,12/06/2023,P6,9106972,"-2,001.58 ","2,001.58 ",2100,Electricity,1001,Mansfield,"1,667.98 "
Nottinghamshire Fire and Rescue Service ,102744,EDF Energy,EDF Energy,Operational Responses,1,202403,12/06/2023,P6,9106973,"-2,068.26 ","2,068.26 ",2100,Electricity,1001,Mansfield,"1,723.55 "
Nottinghamshire Fire and Rescue Service ,102744,EDF Energy,EDF Energy,Operational Responses,1,202403,12/06/2023,P6,9106974,"-2,068.26 ","2,068.26 ",2100,Electricity,1001,Mansfield,"1,723.55 "
Nottinghamshire Fire and Rescue Service ,102744,EDF Energy,EDF Energy,Operational Responses,1,202403,12/06/2023,P6,9106975,"-1,934.90 ","1,934.90 ",2100,Electricity,1001,Mansfield,"1,612.42 "
Nottinghamshire Fire and Rescue Service ,102744,EDF Energy,EDF Energy,Operational Responses,1,202403,12/06/2023,P6,9106976,"-2,068.35 ","2,068.35 ",2100,Electricity,1001,Mansfield,"1,723.63 "
Nottinghamshire Fire and Rescue Service ,102744,EDF Energy,EDF Energy,Operational Responses,1,202403,12/06/2023,P6,9106977,"-2,701.62 ","2,701.62 ",2100,Electricity,1001,Mansfield,"2,251.35 "
Nottinghamshire Fire and Rescue Service ,102744,EDF Energy,EDF Energy,Operational Responses,1,202403,12/06/2023,P6,9106978,"-2,791.48 ","2,791.48 ",2100,Electricity,1001,Mansfield,"2,326.23 "
Nottinghamshire Fire and Rescue Service ,102744,EDF Energy,EDF Energy,Operational Responses,1,202403,26/05/2023,P6,9106798,"2,737.38 ","-2,737.38 ",2100,Electricity,1008,Worksop,"-2,281.15 "
Nottinghamshire Fire and Rescue Service ,102744,EDF Energy,EDF Energy,Operational Responses,1,202403,31/05/2023,P6,9106801,461.50 ,-461.50 ,2100,Electricity,1028,East Leake,-384.58 
Nottinghamshire Fire and Rescue Service ,102744,EDF Energy,EDF Energy,Operational Responses,1,202403,01/06/2023,P6,9106802,485.44 ,-485.44 ,2100,Electricity,1014,Southwell,-404.21 
Nottinghamshire Fire and Rescue Service ,102744,EDF Energy,EDF Energy,Operational Responses,1,202403,01/06/2023,P6,9106802,485.44 ,-485.44 ,2100,Electricity,1014,Southwell,-0.39 
Nottinghamshire Fire and Rescue Service ,102744,EDF Energy,EDF Energy,Operational Responses,1,202403,01/06/2023,P6,9106803,485.00 ,-485.00 ,2100,Electricity,1014,Southwell,-403.80 
Nottinghamshire Fire and Rescue Service ,102744,EDF Energy,EDF Energy,Operational Responses,1,202403,01/06/2023,P6,9106803,485.00 ,-485.00 ,2100,Electricity,1014,Southwell,-0.44 
Nottinghamshire Fire and Rescue Service ,102744,EDF Energy,EDF Energy,Operational Responses,1,202403,01/06/2023,P6,9106804,557.32 ,-557.32 ,2100,Electricity,1015,Collingham,-464.43 
Nottinghamshire Fire and Rescue Service ,102744,EDF Energy,EDF Energy,Operational Responses,1,202403,12/06/2023,P6,9106940,"1,763.42 ","-1,763.42 ",2100,Electricity,1001,Mansfield,"-1,460.21 "
Nottinghamshire Fire and Rescue Service ,102744,EDF Energy,EDF Energy,Operational Responses,1,202403,12/06/2023,P6,9106940,"1,763.42 ","-1,763.42 ",2100,Electricity,1001,Mansfield,-11.17 
Nottinghamshire Fire and Rescue Service ,102744,EDF Energy,EDF Energy,Operational Responses,1,202403,12/06/2023,P6,9106941,"2,566.07 ","-2,566.07 ",2100,Electricity,1001,Mansfield,"-2,133.33 "
Nottinghamshire Fire and Rescue Service ,102744,EDF Energy,EDF Energy,Operational Responses,1,202403,12/06/2023,P6,9106941,"2,566.07 ","-2,566.07 ",2100,Electricity,1001,Mansfield,-6.08 
Nottinghamshire Fire and Rescue Service ,102744,EDF Energy,EDF Energy,Operational Responses,1,202403,12/06/2023,P6,9106942,"2,424.34 ","-2,424.34 ",2100,Electricity,1001,Mansfield,"-2,016.89 "
Nottinghamshire Fire and Rescue Service ,102744,EDF Energy,EDF Energy,Operational Responses,1,202403,12/06/2023,P6,9106942,"2,424.34 ","-2,424.34 ",2100,Electricity,1001,Mansfield,-4.07 
Nottinghamshire Fire and Rescue Service ,102744,EDF Energy,EDF Energy,Operational Responses,1,202403,12/06/2023,P6,9106943,"2,443.34 ","-2,443.34 ",2100,Electricity,1001,Mansfield,"-2,032.49 "
Nottinghamshire Fire and Rescue Service ,102744,EDF Energy,EDF Energy,Operational Responses,1,202403,12/06/2023,P6,9106943,"2,443.34 ","-2,443.34 ",2100,Electricity,1001,Mansfield,-4.35 
Nottinghamshire Fire and Rescue Service ,102744,EDF Energy,EDF Energy,Operational Responses,1,202403,12/06/2023,P6,9106944,"2,484.33 ","-2,484.33 ",2100,Electricity,1001,Mansfield,"-2,066.65 "
Nottinghamshire Fire and Rescue Service ,102744,EDF Energy,EDF Energy,Operational Responses,1,202403,12/06/2023,P6,9106944,"2,484.33 ","-2,484.33 ",2100,Electricity,1001,Mansfield,-4.35 
Nottinghamshire Fire and Rescue Service ,102744,EDF Energy,EDF Energy,Operational Responses,1,202403,12/06/2023,P6,9106963,"2,418.39 ","-2,418.39 ",2100,Electricity,1001,Mansfield,"-2,014.16 "
Nottinghamshire Fire and Rescue Service ,102744,EDF Energy,EDF Energy,Operational Responses,1,202403,12/06/2023,P6,9106963,"2,418.39 ","-2,418.39 ",2100,Electricity,1001,Mansfield,-1.40 
Nottinghamshire Fire and Rescue Service ,102744,EDF Energy,EDF Energy,Operational Responses,1,202403,12/06/2023,P6,9106964,"2,377.97 ","-2,377.97 ",2100,Electricity,1001,Mansfield,"-1,981.64 "
Nottinghamshire Fire and Rescue Service ,102744,EDF Energy,EDF Energy,Operational Responses,1,202403,12/06/2023,P6,9106965,"2,691.06 ","-2,691.06 ",2100,Electricity,1001,Mansfield,"-2,242.55 "
Nottinghamshire Fire and Rescue Service ,102744,EDF Energy,EDF Energy,Operational Responses,1,202403,12/06/2023,P6,9106966,"3,070.84 ","-3,070.84 ",2100,Electricity,1001,Mansfield,"-2,559.03 "
Nottinghamshire Fire and Rescue Service ,102744,EDF Energy,EDF Energy,Operational Responses,1,202403,12/06/2023,P6,9106968,"2,861.79 ","-2,861.79 ",2100,Electricity,1001,Mansfield,"-2,397.72 "
Nottinghamshire Fire and Rescue Service ,102744,EDF Energy,EDF Energy,Operational Responses,1,202403,12/06/2023,P6,9106968,"2,861.79 ","-2,861.79 ",2100,Electricity,1001,Mansfield,15.48 
Nottinghamshire Fire and Rescue Service ,104098,Total Gas & Power Limited,Total Gas & Power Limited,Operational Responses,5,202403,02/06/2023,P6,9106620,-536.61 ,536.61 ,2101,Gas,1006,Edwinstowe,447.18 
Nottinghamshire Fire and Rescue Service ,104098,Total Gas & Power Limited,Total Gas & Power Limited,Operational Responses,5,202403,02/06/2023,P6,9106621,-455.73 ,455.73 ,2101,Gas,1006,Edwinstowe,379.77 
Nottinghamshire Fire and Rescue Service ,104098,Total Gas & Power Limited,Total Gas & Power Limited,Operational Responses,5,202403,02/06/2023,P6,9106622,-484.43 ,484.43 ,2101,Gas,1006,Edwinstowe,403.70 
Nottinghamshire Fire and Rescue Service ,104098,Total Gas & Power Limited,Total Gas & Power Limited,Operational Responses,5,202403,02/06/2023,P6,9106623,-383.12 ,383.12 ,2101,Gas,1006,Edwinstowe,364.88 
Nottinghamshire Fire and Rescue Service ,104098,Total Gas & Power Limited,Total Gas & Power Limited,Operational Responses,5,202403,02/06/2023,P6,9106624,-397.33 ,397.33 ,2101,Gas,1006,Edwinstowe,378.41 
Nottinghamshire Fire and Rescue Service ,104098,Total Gas & Power Limited,Total Gas & Power Limited,Operational Responses,5,202403,02/06/2023,P6,9106625,-384.29 ,384.29 ,2101,Gas,1006,Edwinstowe,365.99 
Nottinghamshire Fire and Rescue Service ,104098,Total Gas & Power Limited,Total Gas & Power Limited,Operational Responses,5,202403,02/06/2023,P6,9106626,-397.12 ,397.12 ,2101,Gas,1006,Edwinstowe,378.21 
Nottinghamshire Fire and Rescue Service ,104098,Total Gas & Power Limited,Total Gas & Power Limited,Operational Responses,5,202403,02/06/2023,P6,9106627,-396.91 ,396.91 ,2101,Gas,1006,Edwinstowe,378.01 
Nottinghamshire Fire and Rescue Service ,104098,Total Gas & Power Limited,Total Gas & Power Limited,Operational Responses,5,202403,02/06/2023,P6,9106628,-384.58 ,384.58 ,2101,Gas,1006,Edwinstowe,366.27 
Nottinghamshire Fire and Rescue Service ,104098,Total Gas & Power Limited,Total Gas & Power Limited,Operational Responses,5,202403,02/06/2023,P6,9106629,-396.62 ,396.62 ,2101,Gas,1006,Edwinstowe,377.73 
Nottinghamshire Fire and Rescue Service ,104098,Total Gas & Power Limited,Total Gas & Power Limited,Operational Responses,5,202403,02/06/2023,P6,9106630,-383.49 ,383.49 ,2101,Gas,1006,Edwinstowe,365.23 
Nottinghamshire Fire and Rescue Service ,104098,Total Gas & Power Limited,Total Gas & Power Limited,Operational Responses,5,202403,02/06/2023,P6,9106631,-949.78 ,949.78 ,2101,Gas,1006,Edwinstowe,791.49 
Nottinghamshire Fire and Rescue Service ,104098,Total Gas & Power Limited,Total Gas & Power Limited,Operational Responses,5,202403,02/06/2023,P6,9106632,-949.60 ,949.60 ,2101,Gas,1006,Edwinstowe,791.34 
Nottinghamshire Fire and Rescue Service ,104098,Total Gas & Power Limited,Total Gas & Power Limited,Operational Responses,5,202403,02/06/2023,P6,9106633,-856.37 ,856.37 ,2101,Gas,1006,Edwinstowe,713.64 
Nottinghamshire Fire and Rescue Service ,104098,Total Gas & Power Limited,Total Gas & Power Limited,Operational Responses,5,202403,02/06/2023,P6,9106634,-946.52 ,946.52 ,2101,Gas,1006,Edwinstowe,788.77 
Nottinghamshire Fire and Rescue Service ,104098,Total Gas & Power Limited,Total Gas & Power Limited,Operational Responses,5,202403,02/06/2023,P6,9106635,"-1,081.84 ","1,081.84 ",2101,Gas,1006,Edwinstowe,901.53 
Nottinghamshire Fire and Rescue Service ,104098,Total Gas & Power Limited,Total Gas & Power Limited,Operational Responses,5,202403,02/06/2023,P6,9106638,-331.75 ,331.75 ,2101,Gas,1017,Bingham,315.95 
Nottinghamshire Fire and Rescue Service ,104098,Total Gas & Power Limited,Total Gas & Power Limited,Operational Responses,5,202403,02/06/2023,P6,9106639,-461.16 ,461.16 ,2101,Gas,1024,Eastwood,439.20 
Nottinghamshire Fire and Rescue Service ,104098,Total Gas & Power Limited,Total Gas & Power Limited,Operational Responses,5,202403,02/06/2023,P6,9106640,-759.38 ,759.38 ,2101,Gas,1012,Retford,632.81 
Nottinghamshire Fire and Rescue Service ,104098,Total Gas & Power Limited,Total Gas & Power Limited,Operational Responses,5,202403,02/06/2023,P6,9106641,"-1,042.08 ","1,042.08 ",2101,Gas,1012,Retford,868.40 
Nottinghamshire Fire and Rescue Service ,104098,Total Gas & Power Limited,Total Gas & Power Limited,Operational Responses,5,202403,02/06/2023,P6,9106642,-656.94 ,656.94 ,2101,Gas,1026,Arnold,547.45 
Nottinghamshire Fire and Rescue Service ,104098,Total Gas & Power Limited,Total Gas & Power Limited,Management & Support Services,5,202403,02/06/2023,P6,9106644,"-1,802.96 ","1,802.96 ",2101,Gas,1030,Service Development Centre,"1,502.47 "
Nottinghamshire Fire and Rescue Service ,102655,Nottingham City Council (City Treasurer),Nottingham City Council (City Treasurer),Operational Responses,1,202403,05/06/2023,P6,9106676,"-2,069.08 ","2,069.08 ",2101,Gas,1003,London Road,"1,724.23 "
Nottinghamshire Fire and Rescue Service ,104098,Total Gas & Power Limited,Total Gas & Power Limited,Operational Responses,5,202403,13/06/2023,P6,9106869,"-1,459.91 ","1,459.91 ",2101,Gas,1029,Highfields Station,"1,216.59 "
Nottinghamshire Fire and Rescue Service ,104098,Total Gas & Power Limited,Total Gas & Power Limited,Operational Responses,5,202403,13/06/2023,P6,9106871,"-3,407.66 ","3,407.66 ",2101,Gas,1005,Ashfield,"2,839.72 "
Nottinghamshire Fire and Rescue Service ,104098,Total Gas & Power Limited,Total Gas & Power Limited,Operational Responses,5,202403,13/06/2023,P6,9106873,-619.14 ,619.14 ,2101,Gas,1016,Newark,515.95 
Nottinghamshire Fire and Rescue Service ,104098,Total Gas & Power Limited,Total Gas & Power Limited,Operational Responses,5,202403,13/06/2023,P6,9106874,-789.98 ,789.98 ,2101,Gas,1008,Worksop,658.32 
Nottinghamshire Fire and Rescue Service ,104098,Total Gas & Power Limited,Total Gas & Power Limited,Operational Responses,5,202403,13/06/2023,P6,9106875,-431.69 ,431.69 ,2101,Gas,1010,Harworth,411.13 
Nottinghamshire Fire and Rescue Service ,104098,Total Gas & Power Limited,Total Gas & Power Limited,Prevention & Education,5,202403,13/06/2023,P6,9106877,-363.26 ,363.26 ,2101,Gas,1036,Clifton Community Safety Centre,345.96 
Nottinghamshire Fire and Rescue Service ,104098,Total Gas & Power Limited,Total Gas & Power Limited,Operational Responses,5,202403,13/06/2023,P6,9106879,"-1,902.01 ","1,902.01 ",2101,Gas,1020,Stockhill,"1,585.01 "
Nottinghamshire Fire and Rescue Service ,104098,Total Gas & Power Limited,Total Gas & Power Limited,Operational Responses,5,202403,13/06/2023,P6,9106880,-282.18 ,282.18 ,2101,Gas,1017,Bingham,268.74 
Nottinghamshire Fire and Rescue Service ,104098,Total Gas & Power Limited,Total Gas & Power Limited,Operational Responses,5,202403,13/06/2023,P6,9106881,"-2,496.93 ","2,496.93 ",2101,Gas,1026,Arnold,"2,080.77 "
Nottinghamshire Fire and Rescue Service ,104098,Total Gas & Power Limited,Total Gas & Power Limited,Operational Responses,5,202403,13/06/2023,P6,9106882,-885.02 ,885.02 ,2101,Gas,1024,Eastwood,737.51 
Nottinghamshire Fire and Rescue Service ,104098,Total Gas & Power Limited,Total Gas & Power Limited,Operational Responses,5,202403,13/06/2023,P6,9106884,"-1,213.29 ","1,213.29 ",2101,Gas,1006,Edwinstowe,"1,011.08 "
Nottinghamshire Fire and Rescue Service ,104098,Total Gas & Power Limited,Total Gas & Power Limited,Operational Responses,5,202403,13/06/2023,P6,9106885,-439.73 ,439.73 ,2101,Gas,1001,Mansfield,418.79 
Nottinghamshire Fire and Rescue Service ,104098,Total Gas & Power Limited,Total Gas & Power Limited,Management & Support Services,5,202403,13/06/2023,P6,9106886,"-1,313.97 ","1,313.97 ",2101,Gas,1030,Service Development Centre,"1,094.98 "
Nottinghamshire Fire and Rescue Service ,104098,Total Gas & Power Limited,Total Gas & Power Limited,Operational Responses,5,202403,13/06/2023,P6,9106890,"-3,130.76 ","3,130.76 ",2101,Gas,1001,Mansfield,"2,608.96 "
Nottinghamshire Fire and Rescue Service ,104098,Total Gas & Power Limited,Total Gas & Power Limited,Operational Responses,5,202403,13/06/2023,P6,9106891,-839.23 ,839.23 ,2101,Gas,1012,Retford,699.36 
Nottinghamshire Fire and Rescue Service ,104098,Total Gas & Power Limited,Total Gas & Power Limited,Operational Responses,5,202403,13/06/2023,P6,9106893,"-1,519.19 ","1,519.19 ",2101,Gas,1019,West Bridgford,"1,265.99 "
Nottinghamshire Fire and Rescue Service ,104098,Total Gas & Power Limited,Total Gas & Power Limited,Operational Responses,5,202403,02/06/2023,P6,9106598,"1,374.27 ","-1,374.27 ",2101,Gas,1024,Eastwood,"-1,145.23 "
Nottinghamshire Fire and Rescue Service ,104098,Total Gas & Power Limited,Total Gas & Power Limited,Operational Responses,5,202403,02/06/2023,P6,9106599,"1,320.92 ","-1,320.92 ",2101,Gas,1012,Retford,"-1,100.77 "
Nottinghamshire Fire and Rescue Service ,104098,Total Gas & Power Limited,Total Gas & Power Limited,Operational Responses,5,202403,02/06/2023,P6,9106601,"2,208.98 ","-2,208.98 ",2101,Gas,1026,Arnold,"-1,840.82 "
Nottinghamshire Fire and Rescue Service ,104098,Total Gas & Power Limited,Total Gas & Power Limited,Management & Support Services,5,202403,02/06/2023,P6,9106602,"2,017.28 ","-2,017.28 ",2101,Gas,1030,Service Development Centre,"-1,681.07 "
Nottinghamshire Fire and Rescue Service ,104098,Total Gas & Power Limited,Total Gas & Power Limited,Operational Responses,5,202403,02/06/2023,P6,9106603,941.42 ,-941.42 ,2101,Gas,1016,Newark,-784.51 
Nottinghamshire Fire and Rescue Service ,104098,Total Gas & Power Limited,Total Gas & Power Limited,Operational Responses,5,202403,02/06/2023,P6,9106605,647.80 ,-647.80 ,2101,Gas,1017,Bingham,-539.83 
Nottinghamshire Fire and Rescue Service ,104098,Total Gas & Power Limited,Total Gas & Power Limited,Operational Responses,5,202403,02/06/2023,P6,9106606,"1,927.56 ","-1,927.56 ",2101,Gas,1006,Edwinstowe,"-1,606.30 "
Nottinghamshire Fire and Rescue Service ,104098,Total Gas & Power Limited,Total Gas & Power Limited,Operational Responses,5,202403,06/06/2023,P6,9106671,994.12 ,-994.12 ,2101,Gas,1027,Carlton,-828.43 
Nottinghamshire Fire and Rescue Service ,104256,Advanced Demand Side Management Limited,Advanced Demand Side Management Limited,Operational Responses,5,202403,12/05/2023,P6,9106607,"-4,635.20 ","4,635.20 ",2103,Water Rates,1001,Mansfield,34.34 
Nottinghamshire Fire and Rescue Service ,104256,Advanced Demand Side Management Limited,Advanced Demand Side Management Limited,Operational Responses,5,202403,12/05/2023,P6,9106607,"-4,635.20 ","4,635.20 ",2103,Water Rates,1001,Mansfield,39.95 
Nottinghamshire Fire and Rescue Service ,104256,Advanced Demand Side Management Limited,Advanced Demand Side Management Limited,Operational Responses,5,202403,12/05/2023,P6,9106607,"-4,635.20 ","4,635.20 ",2103,Water Rates,1003,London Road,68.42 
Nottinghamshire Fire and Rescue Service ,104256,Advanced Demand Side Management Limited,Advanced Demand Side Management Limited,Operational Responses,5,202403,12/05/2023,P6,9106607,"-4,635.20 ","4,635.20 ",2103,Water Rates,1005,Ashfield,54.18 
Nottinghamshire Fire and Rescue Service ,104256,Advanced Demand Side Management Limited,Advanced Demand Side Management Limited,Operational Responses,5,202403,12/05/2023,P6,9106607,"-4,635.20 ","4,635.20 ",2103,Water Rates,1006,Edwinstowe,14.23 
Nottinghamshire Fire and Rescue Service ,104256,Advanced Demand Side Management Limited,Advanced Demand Side Management Limited,Operational Responses,5,202403,12/05/2023,P6,9106607,"-4,635.20 ","4,635.20 ",2103,Water Rates,1006,Edwinstowe,33.39 
Nottinghamshire Fire and Rescue Service ,104256,Advanced Demand Side Management Limited,Advanced Demand Side Management Limited,Operational Responses,5,202403,12/05/2023,P6,9106607,"-4,635.20 ","4,635.20 ",2103,Water Rates,1007,Warsop,18.33 
Nottinghamshire Fire and Rescue Service ,104256,Advanced Demand Side Management Limited,Advanced Demand Side Management Limited,Operational Responses,5,202403,12/05/2023,P6,9106607,"-4,635.20 ","4,635.20 ",2103,Water Rates,1008,Worksop,-126.75 
Nottinghamshire Fire and Rescue Service ,104256,Advanced Demand Side Management Limited,Advanced Demand Side Management Limited,Operational Responses,5,202403,12/05/2023,P6,9106607,"-4,635.20 ","4,635.20 ",2103,Water Rates,1008,Worksop,58.18 
Nottinghamshire Fire and Rescue Service ,104256,Advanced Demand Side Management Limited,Advanced Demand Side Management Limited,Operational Responses,5,202403,12/05/2023,P6,9106607,"-4,635.20 ","4,635.20 ",2103,Water Rates,1008,Worksop,95.10 
Nottinghamshire Fire and Rescue Service ,104256,Advanced Demand Side Management Limited,Advanced Demand Side Management Limited,Operational Responses,5,202403,12/05/2023,P6,9106607,"-4,635.20 ","4,635.20 ",2103,Water Rates,1011,Misterton,7.39 
Nottinghamshire Fire and Rescue Service ,104256,Advanced Demand Side Management Limited,Advanced Demand Side Management Limited,Operational Responses,5,202403,12/05/2023,P6,9106607,"-4,635.20 ","4,635.20 ",2103,Water Rates,1012,Retford,34.81 
Nottinghamshire Fire and Rescue Service ,104256,Advanced Demand Side Management Limited,Advanced Demand Side Management Limited,Operational Responses,5,202403,12/05/2023,P6,9106607,"-4,635.20 ","4,635.20 ",2103,Water Rates,1013,Tuxford,91.35 
Nottinghamshire Fire and Rescue Service ,104256,Advanced Demand Side Management Limited,Advanced Demand Side Management Limited,Operational Responses,5,202403,12/05/2023,P6,9106607,"-4,635.20 ","4,635.20 ",2103,Water Rates,1014,Southwell,29.01 
Nottinghamshire Fire and Rescue Service ,104256,Advanced Demand Side Management Limited,Advanced Demand Side Management Limited,Operational Responses,5,202403,12/05/2023,P6,9106607,"-4,635.20 ","4,635.20 ",2103,Water Rates,1015,Collingham,21.89 
Nottinghamshire Fire and Rescue Service ,104256,Advanced Demand Side Management Limited,Advanced Demand Side Management Limited,Operational Responses,5,202403,12/05/2023,P6,9106607,"-4,635.20 ","4,635.20 ",2103,Water Rates,1016,Newark,2.59 
Nottinghamshire Fire and Rescue Service ,104256,Advanced Demand Side Management Limited,Advanced Demand Side Management Limited,Operational Responses,5,202403,12/05/2023,P6,9106607,"-4,635.20 ","4,635.20 ",2103,Water Rates,1017,Bingham,2.32 
Nottinghamshire Fire and Rescue Service ,104256,Advanced Demand Side Management Limited,Advanced Demand Side Management Limited,Operational Responses,5,202403,12/05/2023,P6,9106607,"-4,635.20 ","4,635.20 ",2103,Water Rates,1017,Bingham,14.77 
Nottinghamshire Fire and Rescue Service ,104256,Advanced Demand Side Management Limited,Advanced Demand Side Management Limited,Operational Responses,5,202403,12/05/2023,P6,9106607,"-4,635.20 ","4,635.20 ",2103,Water Rates,1020,Stockhill,-5.54 
Nottinghamshire Fire and Rescue Service ,104256,Advanced Demand Side Management Limited,Advanced Demand Side Management Limited,Operational Responses,5,202403,12/05/2023,P6,9106607,"-4,635.20 ","4,635.20 ",2103,Water Rates,1020,Stockhill,5.54 
Nottinghamshire Fire and Rescue Service ,104256,Advanced Demand Side Management Limited,Advanced Demand Side Management Limited,Operational Responses,5,202403,12/05/2023,P6,9106607,"-4,635.20 ","4,635.20 ",2103,Water Rates,1020,Stockhill,5.88 
Nottinghamshire Fire and Rescue Service ,104256,Advanced Demand Side Management Limited,Advanced Demand Side Management Limited,Operational Responses,5,202403,12/05/2023,P6,9106607,"-4,635.20 ","4,635.20 ",2103,Water Rates,1023,Stapleford,2.32 
Nottinghamshire Fire and Rescue Service ,104256,Advanced Demand Side Management Limited,Advanced Demand Side Management Limited,Operational Responses,5,202403,12/05/2023,P6,9106607,"-4,635.20 ","4,635.20 ",2103,Water Rates,1024,Eastwood,20.89 
Nottinghamshire Fire and Rescue Service ,104256,Advanced Demand Side Management Limited,Advanced Demand Side Management Limited,Operational Responses,5,202403,12/05/2023,P6,9106607,"-4,635.20 ","4,635.20 ",2103,Water Rates,1026,Arnold,75.26 
Nottinghamshire Fire and Rescue Service ,104256,Advanced Demand Side Management Limited,Advanced Demand Side Management Limited,Operational Responses,5,202403,12/05/2023,P6,9106607,"-4,635.20 ","4,635.20 ",2103,Water Rates,1027,Carlton,24.45 
Nottinghamshire Fire and Rescue Service ,104256,Advanced Demand Side Management Limited,Advanced Demand Side Management Limited,Operational Responses,5,202403,12/05/2023,P6,9106607,"-4,635.20 ","4,635.20 ",2103,Water Rates,1029,Highfields Station,301.46 
Nottinghamshire Fire and Rescue Service ,104256,Advanced Demand Side Management Limited,Advanced Demand Side Management Limited,Management & Support Services,5,202403,12/05/2023,P6,9106607,"-4,635.20 ","4,635.20 ",2103,Water Rates,1030,Service Development Centre,536.33 
Nottinghamshire Fire and Rescue Service ,104256,Advanced Demand Side Management Limited,Advanced Demand Side Management Limited,Management & Support Services,5,202403,12/05/2023,P6,9106607,"-4,635.20 ","4,635.20 ",2103,Water Rates,1035,Headquarters,249.87 
Nottinghamshire Fire and Rescue Service ,104256,Advanced Demand Side Management Limited,Advanced Demand Side Management Limited,Prevention & Education,5,202403,12/05/2023,P6,9106607,"-4,635.20 ","4,635.20 ",2103,Water Rates,1036,Clifton Community Safety Centre,14.77 
Nottinghamshire Fire and Rescue Service ,102276,Water Plus Limited (Payments Centre),Water Plus Limited (Payments Centre),Operational Responses,1,202403,13/06/2023,P6,9106930,-349.92 ,349.92 ,2103,Water Rates,1008,Worksop,85.48 
Nottinghamshire Fire and Rescue Service ,104256,Advanced Demand Side Management Limited,Advanced Demand Side Management Limited,Operational Responses,5,202403,12/05/2023,P6,9106607,"-4,635.20 ","4,635.20 ",2104,Sewerage and Environmental,1001,Mansfield,23.51 
Nottinghamshire Fire and Rescue Service ,104256,Advanced Demand Side Management Limited,Advanced Demand Side Management Limited,Operational Responses,5,202403,12/05/2023,P6,9106607,"-4,635.20 ","4,635.20 ",2104,Sewerage and Environmental,1001,Mansfield,202.85 
Nottinghamshire Fire and Rescue Service ,104256,Advanced Demand Side Management Limited,Advanced Demand Side Management Limited,Operational Responses,5,202403,12/05/2023,P6,9106607,"-4,635.20 ","4,635.20 ",2104,Sewerage and Environmental,1003,London Road,46.02 
Nottinghamshire Fire and Rescue Service ,104256,Advanced Demand Side Management Limited,Advanced Demand Side Management Limited,Operational Responses,5,202403,12/05/2023,P6,9106607,"-4,635.20 ","4,635.20 ",2104,Sewerage and Environmental,1005,Ashfield,88.42 
Nottinghamshire Fire and Rescue Service ,104256,Advanced Demand Side Management Limited,Advanced Demand Side Management Limited,Operational Responses,5,202403,12/05/2023,P6,9106607,"-4,635.20 ","4,635.20 ",2104,Sewerage and Environmental,1006,Edwinstowe,9.48 
Nottinghamshire Fire and Rescue Service ,104256,Advanced Demand Side Management Limited,Advanced Demand Side Management Limited,Operational Responses,5,202403,12/05/2023,P6,9106607,"-4,635.20 ","4,635.20 ",2104,Sewerage and Environmental,1006,Edwinstowe,126.39 
Nottinghamshire Fire and Rescue Service ,104256,Advanced Demand Side Management Limited,Advanced Demand Side Management Limited,Operational Responses,5,202403,12/05/2023,P6,9106607,"-4,635.20 ","4,635.20 ",2104,Sewerage and Environmental,1007,Warsop,12.84 
Nottinghamshire Fire and Rescue Service ,104256,Advanced Demand Side Management Limited,Advanced Demand Side Management Limited,Operational Responses,5,202403,12/05/2023,P6,9106607,"-4,635.20 ","4,635.20 ",2104,Sewerage and Environmental,1008,Worksop,-317.75 
Nottinghamshire Fire and Rescue Service ,104256,Advanced Demand Side Management Limited,Advanced Demand Side Management Limited,Operational Responses,5,202403,12/05/2023,P6,9106607,"-4,635.20 ","4,635.20 ",2104,Sewerage and Environmental,1008,Worksop,239.58 
Nottinghamshire Fire and Rescue Service ,104256,Advanced Demand Side Management Limited,Advanced Demand Side Management Limited,Operational Responses,5,202403,12/05/2023,P6,9106607,"-4,635.20 ","4,635.20 ",2104,Sewerage and Environmental,1008,Worksop,268.55 
Nottinghamshire Fire and Rescue Service ,104256,Advanced Demand Side Management Limited,Advanced Demand Side Management Limited,Operational Responses,5,202403,12/05/2023,P6,9106607,"-4,635.20 ","4,635.20 ",2104,Sewerage and Environmental,1011,Misterton,40.07 
Nottinghamshire Fire and Rescue Service ,104256,Advanced Demand Side Management Limited,Advanced Demand Side Management Limited,Operational Responses,5,202403,12/05/2023,P6,9106607,"-4,635.20 ","4,635.20 ",2104,Sewerage and Environmental,1012,Retford,25.88 
Nottinghamshire Fire and Rescue Service ,104256,Advanced Demand Side Management Limited,Advanced Demand Side Management Limited,Operational Responses,5,202403,12/05/2023,P6,9106607,"-4,635.20 ","4,635.20 ",2104,Sewerage and Environmental,1012,Retford,102.99 
Nottinghamshire Fire and Rescue Service ,104256,Advanced Demand Side Management Limited,Advanced Demand Side Management Limited,Operational Responses,5,202403,12/05/2023,P6,9106607,"-4,635.20 ","4,635.20 ",2104,Sewerage and Environmental,1013,Tuxford,167.86 
Nottinghamshire Fire and Rescue Service ,104256,Advanced Demand Side Management Limited,Advanced Demand Side Management Limited,Operational Responses,5,202403,12/05/2023,P6,9106607,"-4,635.20 ","4,635.20 ",2104,Sewerage and Environmental,1014,Southwell,93.70 
Nottinghamshire Fire and Rescue Service ,104256,Advanced Demand Side Management Limited,Advanced Demand Side Management Limited,Operational Responses,5,202403,12/05/2023,P6,9106607,"-4,635.20 ","4,635.20 ",2104,Sewerage and Environmental,1015,Collingham,67.09 
Nottinghamshire Fire and Rescue Service ,104256,Advanced Demand Side Management Limited,Advanced Demand Side Management Limited,Operational Responses,5,202403,12/05/2023,P6,9106607,"-4,635.20 ","4,635.20 ",2104,Sewerage and Environmental,1016,Newark,177.97 
Nottinghamshire Fire and Rescue Service ,104256,Advanced Demand Side Management Limited,Advanced Demand Side Management Limited,Operational Responses,5,202403,12/05/2023,P6,9106607,"-4,635.20 ","4,635.20 ",2104,Sewerage and Environmental,1017,Bingham,11.74 
Nottinghamshire Fire and Rescue Service ,104256,Advanced Demand Side Management Limited,Advanced Demand Side Management Limited,Operational Responses,5,202403,12/05/2023,P6,9106607,"-4,635.20 ","4,635.20 ",2104,Sewerage and Environmental,1017,Bingham,84.22 
Nottinghamshire Fire and Rescue Service ,104256,Advanced Demand Side Management Limited,Advanced Demand Side Management Limited,Operational Responses,5,202403,12/05/2023,P6,9106607,"-4,635.20 ","4,635.20 ",2104,Sewerage and Environmental,1020,Stockhill,-234.44 
Nottinghamshire Fire and Rescue Service ,104256,Advanced Demand Side Management Limited,Advanced Demand Side Management Limited,Operational Responses,5,202403,12/05/2023,P6,9106607,"-4,635.20 ","4,635.20 ",2104,Sewerage and Environmental,1020,Stockhill,180.34 
Nottinghamshire Fire and Rescue Service ,104256,Advanced Demand Side Management Limited,Advanced Demand Side Management Limited,Operational Responses,5,202403,12/05/2023,P6,9106607,"-4,635.20 ","4,635.20 ",2104,Sewerage and Environmental,1020,Stockhill,234.32 
Nottinghamshire Fire and Rescue Service ,104256,Advanced Demand Side Management Limited,Advanced Demand Side Management Limited,Operational Responses,5,202403,12/05/2023,P6,9106607,"-4,635.20 ","4,635.20 ",2104,Sewerage and Environmental,1023,Stapleford,75.93 
Nottinghamshire Fire and Rescue Service ,104256,Advanced Demand Side Management Limited,Advanced Demand Side Management Limited,Operational Responses,5,202403,12/05/2023,P6,9106607,"-4,635.20 ","4,635.20 ",2104,Sewerage and Environmental,1024,Eastwood,50.13 
Nottinghamshire Fire and Rescue Service ,104256,Advanced Demand Side Management Limited,Advanced Demand Side Management Limited,Operational Responses,5,202403,12/05/2023,P6,9106607,"-4,635.20 ","4,635.20 ",2104,Sewerage and Environmental,1026,Arnold,153.64 
Nottinghamshire Fire and Rescue Service ,104256,Advanced Demand Side Management Limited,Advanced Demand Side Management Limited,Operational Responses,5,202403,12/05/2023,P6,9106607,"-4,635.20 ","4,635.20 ",2104,Sewerage and Environmental,1027,Carlton,191.00 
Nottinghamshire Fire and Rescue Service ,104256,Advanced Demand Side Management Limited,Advanced Demand Side Management Limited,Operational Responses,5,202403,12/05/2023,P6,9106607,"-4,635.20 ","4,635.20 ",2104,Sewerage and Environmental,1029,Highfields Station,201.25 
Nottinghamshire Fire and Rescue Service ,104256,Advanced Demand Side Management Limited,Advanced Demand Side Management Limited,Management & Support Services,5,202403,12/05/2023,P6,9106607,"-4,635.20 ","4,635.20 ",2104,Sewerage and Environmental,1030,Service Development Centre,357.66 
Nottinghamshire Fire and Rescue Service ,104256,Advanced Demand Side Management Limited,Advanced Demand Side Management Limited,Management & Support Services,5,202403,12/05/2023,P6,9106607,"-4,635.20 ","4,635.20 ",2104,Sewerage and Environmental,1035,Headquarters,166.88 
Nottinghamshire Fire and Rescue Service ,104256,Advanced Demand Side Management Limited,Advanced Demand Side Management Limited,Prevention & Education,5,202403,12/05/2023,P6,9106607,"-4,635.20 ","4,635.20 ",2104,Sewerage and Environmental,1036,Clifton Community Safety Centre,62.35 
Nottinghamshire Fire and Rescue Service ,102276,Water Plus Limited (Payments Centre),Water Plus Limited (Payments Centre),Operational Responses,1,202403,13/06/2023,P6,9106930,-349.92 ,349.92 ,2104,Sewerage and Environmental,1008,Worksop,57.06 
Nottinghamshire Fire and Rescue Service ,102276,Water Plus Limited (Payments Centre),Water Plus Limited (Payments Centre),Operational Responses,1,202403,13/06/2023,P6,9106930,-349.92 ,349.92 ,2104,Sewerage and Environmental,1008,Worksop,190.28 
Nottinghamshire Fire and Rescue Service ,103280,Shred IT Limited,Shred IT Limited,Management & Support Services,5,202403,30/04/2023,P6,9106556,"-1,226.42 ","1,226.42 ",2106,Refuse / Trade Waste Collection,2086,Procurement,"1,022.02 "
Nottinghamshire Fire and Rescue Service ,101512,Frank Key Group Merchants (Nottingham) Ltd,Frank Key Group Merchants (Nottingham) Ltd,Management & Support Services,1,202403,31/05/2023,P6,9106670,-282.00 ,282.00 ,2106,Refuse / Trade Waste Collection,1035,Headquarters,235.00 
Nottinghamshire Fire and Rescue Service ,103280,Shred IT Limited,Shred IT Limited,Management & Support Services,5,202403,31/05/2023,P6,9106690,"-1,435.90 ","1,435.90 ",2106,Refuse / Trade Waste Collection,2086,Procurement,"1,196.58 "
Nottinghamshire Fire and Rescue Service ,100557,NCC Sundry Debtors,NCC Sundry Debtors,Operational Responses,4,202403,01/06/2023,P6,9106590,"-1,925.17 ","1,925.17 ",2201,Grounds Maintenance,1001,Mansfield,38.10 
Nottinghamshire Fire and Rescue Service ,100557,NCC Sundry Debtors,NCC Sundry Debtors,Operational Responses,4,202403,01/06/2023,P6,9106590,"-1,925.17 ","1,925.17 ",2201,Grounds Maintenance,1002,Blidworth,67.84 
Nottinghamshire Fire and Rescue Service ,100557,NCC Sundry Debtors,NCC Sundry Debtors,Operational Responses,4,202403,01/06/2023,P6,9106590,"-1,925.17 ","1,925.17 ",2201,Grounds Maintenance,1003,London Road,46.25 
Nottinghamshire Fire and Rescue Service ,100557,NCC Sundry Debtors,NCC Sundry Debtors,Operational Responses,4,202403,01/06/2023,P6,9106590,"-1,925.17 ","1,925.17 ",2201,Grounds Maintenance,1005,Ashfield,218.75 
Nottinghamshire Fire and Rescue Service ,100557,NCC Sundry Debtors,NCC Sundry Debtors,Operational Responses,4,202403,01/06/2023,P6,9106590,"-1,925.17 ","1,925.17 ",2201,Grounds Maintenance,1006,Edwinstowe,45.28 
Nottinghamshire Fire and Rescue Service ,100557,NCC Sundry Debtors,NCC Sundry Debtors,Operational Responses,4,202403,01/06/2023,P6,9106590,"-1,925.17 ","1,925.17 ",2201,Grounds Maintenance,1007,Warsop,7.50 
Nottinghamshire Fire and Rescue Service ,100557,NCC Sundry Debtors,NCC Sundry Debtors,Operational Responses,4,202403,01/06/2023,P6,9106590,"-1,925.17 ","1,925.17 ",2201,Grounds Maintenance,1010,Harworth,44.25 
Nottinghamshire Fire and Rescue Service ,100557,NCC Sundry Debtors,NCC Sundry Debtors,Operational Responses,4,202403,01/06/2023,P6,9106590,"-1,925.17 ","1,925.17 ",2201,Grounds Maintenance,1011,Misterton,39.50 
Nottinghamshire Fire and Rescue Service ,100557,NCC Sundry Debtors,NCC Sundry Debtors,Operational Responses,4,202403,01/06/2023,P6,9106590,"-1,925.17 ","1,925.17 ",2201,Grounds Maintenance,1012,Retford,26.76 
Nottinghamshire Fire and Rescue Service ,100557,NCC Sundry Debtors,NCC Sundry Debtors,Operational Responses,4,202403,01/06/2023,P6,9106590,"-1,925.17 ","1,925.17 ",2201,Grounds Maintenance,1013,Tuxford,30.00 
Nottinghamshire Fire and Rescue Service ,100557,NCC Sundry Debtors,NCC Sundry Debtors,Operational Responses,4,202403,01/06/2023,P6,9106590,"-1,925.17 ","1,925.17 ",2201,Grounds Maintenance,1014,Southwell,36.13 
Nottinghamshire Fire and Rescue Service ,100557,NCC Sundry Debtors,NCC Sundry Debtors,Operational Responses,4,202403,01/06/2023,P6,9106590,"-1,925.17 ","1,925.17 ",2201,Grounds Maintenance,1015,Collingham,40.80 
Nottinghamshire Fire and Rescue Service ,100557,NCC Sundry Debtors,NCC Sundry Debtors,Operational Responses,4,202403,01/06/2023,P6,9106590,"-1,925.17 ","1,925.17 ",2201,Grounds Maintenance,1016,Newark,40.00 
Nottinghamshire Fire and Rescue Service ,100557,NCC Sundry Debtors,NCC Sundry Debtors,Operational Responses,4,202403,01/06/2023,P6,9106590,"-1,925.17 ","1,925.17 ",2201,Grounds Maintenance,1017,Bingham,64.08 
Nottinghamshire Fire and Rescue Service ,100557,NCC Sundry Debtors,NCC Sundry Debtors,Operational Responses,4,202403,01/06/2023,P6,9106590,"-1,925.17 ","1,925.17 ",2201,Grounds Maintenance,1019,West Bridgford,84.48 
Nottinghamshire Fire and Rescue Service ,100557,NCC Sundry Debtors,NCC Sundry Debtors,Operational Responses,4,202403,01/06/2023,P6,9106590,"-1,925.17 ","1,925.17 ",2201,Grounds Maintenance,1020,Stockhill,216.10 
Nottinghamshire Fire and Rescue Service ,100557,NCC Sundry Debtors,NCC Sundry Debtors,Operational Responses,4,202403,01/06/2023,P6,9106590,"-1,925.17 ","1,925.17 ",2201,Grounds Maintenance,1023,Stapleford,80.50 
Nottinghamshire Fire and Rescue Service ,100557,NCC Sundry Debtors,NCC Sundry Debtors,Operational Responses,4,202403,01/06/2023,P6,9106590,"-1,925.17 ","1,925.17 ",2201,Grounds Maintenance,1024,Eastwood,28.75 
Nottinghamshire Fire and Rescue Service ,100557,NCC Sundry Debtors,NCC Sundry Debtors,Operational Responses,4,202403,01/06/2023,P6,9106590,"-1,925.17 ","1,925.17 ",2201,Grounds Maintenance,1026,Arnold,22.08 
Nottinghamshire Fire and Rescue Service ,100557,NCC Sundry Debtors,NCC Sundry Debtors,Operational Responses,4,202403,01/06/2023,P6,9106590,"-1,925.17 ","1,925.17 ",2201,Grounds Maintenance,1027,Carlton,39.58 
Nottinghamshire Fire and Rescue Service ,100557,NCC Sundry Debtors,NCC Sundry Debtors,Operational Responses,4,202403,01/06/2023,P6,9106590,"-1,925.17 ","1,925.17 ",2201,Grounds Maintenance,1028,East Leake,133.75 
Nottinghamshire Fire and Rescue Service ,100557,NCC Sundry Debtors,NCC Sundry Debtors,Operational Responses,4,202403,01/06/2023,P6,9106590,"-1,925.17 ","1,925.17 ",2201,Grounds Maintenance,1029,Highfields Station,97.08 
Nottinghamshire Fire and Rescue Service ,100557,NCC Sundry Debtors,NCC Sundry Debtors,Management & Support Services,4,202403,01/06/2023,P6,9106590,"-1,925.17 ","1,925.17 ",2201,Grounds Maintenance,1030,Service Development Centre,156.75 
Nottinghamshire Fire and Rescue Service ,100125,Nottinghamshire County Council,Nottinghamshire County Council,Management & Support Services,1,202403,16/06/2023,P6,9106866,"-1,440.00 ","1,440.00 ",2201,Grounds Maintenance,2087,Estates Department (Previously Premises),"1,200.00 "
Nottinghamshire Fire and Rescue Service ,100357,Eastern Shires Purchasing Organisation,Eastern Shires Purchasing Organisation,Operational Responses,1,202403,08/06/2023,P6,9106865,-270.30 ,270.30 ,2202,Fixtures & Fittings,1028,East Leake,225.25 
Nottinghamshire Fire and Rescue Service ,100557,NCC Sundry Debtors,NCC Sundry Debtors,Operational Responses,4,202403,01/06/2023,P6,9106592,-864.00 ,864.00 ,2204,Contract Cleaning,1001,Mansfield,30.00 
Nottinghamshire Fire and Rescue Service ,100557,NCC Sundry Debtors,NCC Sundry Debtors,Operational Responses,4,202403,01/06/2023,P6,9106592,-864.00 ,864.00 ,2204,Contract Cleaning,1002,Blidworth,30.00 
Nottinghamshire Fire and Rescue Service ,100557,NCC Sundry Debtors,NCC Sundry Debtors,Operational Responses,4,202403,01/06/2023,P6,9106592,-864.00 ,864.00 ,2204,Contract Cleaning,1003,London Road,30.00 
Nottinghamshire Fire and Rescue Service ,100557,NCC Sundry Debtors,NCC Sundry Debtors,Operational Responses,4,202403,01/06/2023,P6,9106592,-864.00 ,864.00 ,2204,Contract Cleaning,1005,Ashfield,30.00 
Nottinghamshire Fire and Rescue Service ,100557,NCC Sundry Debtors,NCC Sundry Debtors,Operational Responses,4,202403,01/06/2023,P6,9106592,-864.00 ,864.00 ,2204,Contract Cleaning,1006,Edwinstowe,30.00 
Nottinghamshire Fire and Rescue Service ,100557,NCC Sundry Debtors,NCC Sundry Debtors,Operational Responses,4,202403,01/06/2023,P6,9106592,-864.00 ,864.00 ,2204,Contract Cleaning,1007,Warsop,30.00 
Nottinghamshire Fire and Rescue Service ,100557,NCC Sundry Debtors,NCC Sundry Debtors,Operational Responses,4,202403,01/06/2023,P6,9106592,-864.00 ,864.00 ,2204,Contract Cleaning,1008,Worksop,30.00 
Nottinghamshire Fire and Rescue Service ,100557,NCC Sundry Debtors,NCC Sundry Debtors,Operational Responses,4,202403,01/06/2023,P6,9106592,-864.00 ,864.00 ,2204,Contract Cleaning,1010,Harworth,30.00 
Nottinghamshire Fire and Rescue Service ,100557,NCC Sundry Debtors,NCC Sundry Debtors,Operational Responses,4,202403,01/06/2023,P6,9106592,-864.00 ,864.00 ,2204,Contract Cleaning,1011,Misterton,30.00 
Nottinghamshire Fire and Rescue Service ,100557,NCC Sundry Debtors,NCC Sundry Debtors,Operational Responses,4,202403,01/06/2023,P6,9106592,-864.00 ,864.00 ,2204,Contract Cleaning,1012,Retford,30.00 
Nottinghamshire Fire and Rescue Service ,100557,NCC Sundry Debtors,NCC Sundry Debtors,Operational Responses,4,202403,01/06/2023,P6,9106592,-864.00 ,864.00 ,2204,Contract Cleaning,1013,Tuxford,30.00 
Nottinghamshire Fire and Rescue Service ,100557,NCC Sundry Debtors,NCC Sundry Debtors,Operational Responses,4,202403,01/06/2023,P6,9106592,-864.00 ,864.00 ,2204,Contract Cleaning,1014,Southwell,30.00 
Nottinghamshire Fire and Rescue Service ,100557,NCC Sundry Debtors,NCC Sundry Debtors,Operational Responses,4,202403,01/06/2023,P6,9106592,-864.00 ,864.00 ,2204,Contract Cleaning,1015,Collingham,30.00 
Nottinghamshire Fire and Rescue Service ,100557,NCC Sundry Debtors,NCC Sundry Debtors,Operational Responses,4,202403,01/06/2023,P6,9106592,-864.00 ,864.00 ,2204,Contract Cleaning,1016,Newark,30.00 
Nottinghamshire Fire and Rescue Service ,100557,NCC Sundry Debtors,NCC Sundry Debtors,Operational Responses,4,202403,01/06/2023,P6,9106592,-864.00 ,864.00 ,2204,Contract Cleaning,1017,Bingham,30.00 
Nottinghamshire Fire and Rescue Service ,100557,NCC Sundry Debtors,NCC Sundry Debtors,Operational Responses,4,202403,01/06/2023,P6,9106592,-864.00 ,864.00 ,2204,Contract Cleaning,1019,West Bridgford,30.00 
Nottinghamshire Fire and Rescue Service ,100557,NCC Sundry Debtors,NCC Sundry Debtors,Operational Responses,4,202403,01/06/2023,P6,9106592,-864.00 ,864.00 ,2204,Contract Cleaning,1020,Stockhill,30.00 
Nottinghamshire Fire and Rescue Service ,100557,NCC Sundry Debtors,NCC Sundry Debtors,Operational Responses,4,202403,01/06/2023,P6,9106592,-864.00 ,864.00 ,2204,Contract Cleaning,1023,Stapleford,30.00 
Nottinghamshire Fire and Rescue Service ,100557,NCC Sundry Debtors,NCC Sundry Debtors,Operational Responses,4,202403,01/06/2023,P6,9106592,-864.00 ,864.00 ,2204,Contract Cleaning,1024,Eastwood,30.00 
Nottinghamshire Fire and Rescue Service ,100557,NCC Sundry Debtors,NCC Sundry Debtors,Operational Responses,4,202403,01/06/2023,P6,9106592,-864.00 ,864.00 ,2204,Contract Cleaning,1026,Arnold,30.00 
Nottinghamshire Fire and Rescue Service ,100557,NCC Sundry Debtors,NCC Sundry Debtors,Operational Responses,4,202403,01/06/2023,P6,9106592,-864.00 ,864.00 ,2204,Contract Cleaning,1027,Carlton,30.00 
Nottinghamshire Fire and Rescue Service ,100557,NCC Sundry Debtors,NCC Sundry Debtors,Operational Responses,4,202403,01/06/2023,P6,9106592,-864.00 ,864.00 ,2204,Contract Cleaning,1028,East Leake,30.00 
Nottinghamshire Fire and Rescue Service ,100557,NCC Sundry Debtors,NCC Sundry Debtors,Operational Responses,4,202403,01/06/2023,P6,9106592,-864.00 ,864.00 ,2204,Contract Cleaning,1029,Highfields Station,30.00 
Nottinghamshire Fire and Rescue Service ,100557,NCC Sundry Debtors,NCC Sundry Debtors,Management & Support Services,4,202403,01/06/2023,P6,9106592,-864.00 ,864.00 ,2204,Contract Cleaning,1030,Service Development Centre,30.00 
Nottinghamshire Fire and Rescue Service ,100557,NCC Sundry Debtors,NCC Sundry Debtors,Operational Responses,4,202403,01/06/2023,P6,9106594,"-39,783.70 ","39,783.70 ",2204,Contract Cleaning,1001,Mansfield,"2,845.17 "
Nottinghamshire Fire and Rescue Service ,100557,NCC Sundry Debtors,NCC Sundry Debtors,Operational Responses,4,202403,01/06/2023,P6,9106594,"-39,783.70 ","39,783.70 ",2204,Contract Cleaning,1002,Blidworth,268.77 
Nottinghamshire Fire and Rescue Service ,100557,NCC Sundry Debtors,NCC Sundry Debtors,Operational Responses,4,202403,01/06/2023,P6,9106594,"-39,783.70 ","39,783.70 ",2204,Contract Cleaning,1003,London Road,"3,037.54 "
Nottinghamshire Fire and Rescue Service ,100557,NCC Sundry Debtors,NCC Sundry Debtors,Operational Responses,4,202403,01/06/2023,P6,9106594,"-39,783.70 ","39,783.70 ",2204,Contract Cleaning,1005,Ashfield,"1,498.54 "
Nottinghamshire Fire and Rescue Service ,100557,NCC Sundry Debtors,NCC Sundry Debtors,Operational Responses,4,202403,01/06/2023,P6,9106594,"-39,783.70 ","39,783.70 ",2204,Contract Cleaning,1006,Edwinstowe,"1,152.27 "
Nottinghamshire Fire and Rescue Service ,100557,NCC Sundry Debtors,NCC Sundry Debtors,Operational Responses,4,202403,01/06/2023,P6,9106594,"-39,783.70 ","39,783.70 ",2204,Contract Cleaning,1007,Warsop,230.29 
Nottinghamshire Fire and Rescue Service ,100557,NCC Sundry Debtors,NCC Sundry Debtors,Operational Responses,4,202403,01/06/2023,P6,9106594,"-39,783.70 ","39,783.70 ",2204,Contract Cleaning,1008,Worksop,"1,883.29 "
Nottinghamshire Fire and Rescue Service ,100557,NCC Sundry Debtors,NCC Sundry Debtors,Operational Responses,4,202403,01/06/2023,P6,9106594,"-39,783.70 ","39,783.70 ",2204,Contract Cleaning,1010,Harworth,422.67 
Nottinghamshire Fire and Rescue Service ,100557,NCC Sundry Debtors,NCC Sundry Debtors,Operational Responses,4,202403,01/06/2023,P6,9106594,"-39,783.70 ","39,783.70 ",2204,Contract Cleaning,1011,Misterton,345.72 
Nottinghamshire Fire and Rescue Service ,100557,NCC Sundry Debtors,NCC Sundry Debtors,Operational Responses,4,202403,01/06/2023,P6,9106594,"-39,783.70 ","39,783.70 ",2204,Contract Cleaning,1012,Retford,"1,921.77 "
Nottinghamshire Fire and Rescue Service ,100557,NCC Sundry Debtors,NCC Sundry Debtors,Operational Responses,4,202403,01/06/2023,P6,9106594,"-39,783.70 ","39,783.70 ",2204,Contract Cleaning,1013,Tuxford,268.77 
Nottinghamshire Fire and Rescue Service ,100557,NCC Sundry Debtors,NCC Sundry Debtors,Operational Responses,4,202403,01/06/2023,P6,9106594,"-39,783.70 ","39,783.70 ",2204,Contract Cleaning,1014,Southwell,384.19 
Nottinghamshire Fire and Rescue Service ,100557,NCC Sundry Debtors,NCC Sundry Debtors,Operational Responses,4,202403,01/06/2023,P6,9106594,"-39,783.70 ","39,783.70 ",2204,Contract Cleaning,1015,Collingham,384.19 
Nottinghamshire Fire and Rescue Service ,100557,NCC Sundry Debtors,NCC Sundry Debtors,Operational Responses,4,202403,01/06/2023,P6,9106594,"-39,783.70 ","39,783.70 ",2204,Contract Cleaning,1016,Newark,"1,498.54 "
Nottinghamshire Fire and Rescue Service ,100557,NCC Sundry Debtors,NCC Sundry Debtors,Operational Responses,4,202403,01/06/2023,P6,9106594,"-39,783.70 ","39,783.70 ",2204,Contract Cleaning,1017,Bingham,268.77 
Nottinghamshire Fire and Rescue Service ,100557,NCC Sundry Debtors,NCC Sundry Debtors,Operational Responses,4,202403,01/06/2023,P6,9106594,"-39,783.70 ","39,783.70 ",2204,Contract Cleaning,1019,West Bridgford,"2,306.52 "
Nottinghamshire Fire and Rescue Service ,100557,NCC Sundry Debtors,NCC Sundry Debtors,Operational Responses,4,202403,01/06/2023,P6,9106594,"-39,783.70 ","39,783.70 ",2204,Contract Cleaning,1020,Stockhill,"1,883.29 "
Nottinghamshire Fire and Rescue Service ,100557,NCC Sundry Debtors,NCC Sundry Debtors,Operational Responses,4,202403,01/06/2023,P6,9106594,"-39,783.70 ","39,783.70 ",2204,Contract Cleaning,1023,Stapleford,615.04 
Nottinghamshire Fire and Rescue Service ,100557,NCC Sundry Debtors,NCC Sundry Debtors,Operational Responses,4,202403,01/06/2023,P6,9106594,"-39,783.70 ","39,783.70 ",2204,Contract Cleaning,1024,Eastwood,422.67 
Nottinghamshire Fire and Rescue Service ,100557,NCC Sundry Debtors,NCC Sundry Debtors,Operational Responses,4,202403,01/06/2023,P6,9106594,"-39,783.70 ","39,783.70 ",2204,Contract Cleaning,1026,Arnold,"1,402.35 "
Nottinghamshire Fire and Rescue Service ,100557,NCC Sundry Debtors,NCC Sundry Debtors,Operational Responses,4,202403,01/06/2023,P6,9106594,"-39,783.70 ","39,783.70 ",2204,Contract Cleaning,1027,Carlton,"2,652.79 "
Nottinghamshire Fire and Rescue Service ,100557,NCC Sundry Debtors,NCC Sundry Debtors,Operational Responses,4,202403,01/06/2023,P6,9106594,"-39,783.70 ","39,783.70 ",2204,Contract Cleaning,1028,East Leake,268.77 
Nottinghamshire Fire and Rescue Service ,100557,NCC Sundry Debtors,NCC Sundry Debtors,Operational Responses,4,202403,01/06/2023,P6,9106594,"-39,783.70 ","39,783.70 ",2204,Contract Cleaning,1029,Highfields Station,"5,075.59 "
Nottinghamshire Fire and Rescue Service ,100557,NCC Sundry Debtors,NCC Sundry Debtors,Management & Support Services,4,202403,01/06/2023,P6,9106594,"-39,783.70 ","39,783.70 ",2204,Contract Cleaning,1030,Service Development Centre,"2,115.57 "
Nottinghamshire Fire and Rescue Service ,103337,Falcon Environmental Limited,Falcon Environmental Limited,Management & Support Services,5,202403,05/06/2023,P6,9106724,-336.00 ,336.00 ,2204,Contract Cleaning,2087,Estates Department (Previously Premises),280.00 
Nottinghamshire Fire and Rescue Service ,103337,Falcon Environmental Limited,Falcon Environmental Limited,Operational Responses,5,202403,18/06/2023,P6,9106867,"-1,596.00 ","1,596.00 ",2204,Contract Cleaning,1028,East Leake,"1,330.00 "
Nottinghamshire Fire and Rescue Service ,103337,Falcon Environmental Limited,Falcon Environmental Limited,Operational Responses,5,202403,22/06/2023,P6,9106998,"-1,470.00 ","1,470.00 ",2204,Contract Cleaning,1019,West Bridgford,"1,225.00 "
Nottinghamshire Fire and Rescue Service ,100557,NCC Sundry Debtors,NCC Sundry Debtors,Operational Responses,4,202403,01/06/2023,P6,9106591,-848.00 ,848.00 ,2205,Window Cleaning,1001,Mansfield,50.00 
Nottinghamshire Fire and Rescue Service ,100557,NCC Sundry Debtors,NCC Sundry Debtors,Operational Responses,4,202403,01/06/2023,P6,9106591,-848.00 ,848.00 ,2205,Window Cleaning,1002,Blidworth,20.00 
Nottinghamshire Fire and Rescue Service ,100557,NCC Sundry Debtors,NCC Sundry Debtors,Operational Responses,4,202403,01/06/2023,P6,9106591,-848.00 ,848.00 ,2205,Window Cleaning,1003,London Road,41.67 
Nottinghamshire Fire and Rescue Service ,100557,NCC Sundry Debtors,NCC Sundry Debtors,Operational Responses,4,202403,01/06/2023,P6,9106591,-848.00 ,848.00 ,2205,Window Cleaning,1005,Ashfield,33.33 
Nottinghamshire Fire and Rescue Service ,100557,NCC Sundry Debtors,NCC Sundry Debtors,Operational Responses,4,202403,01/06/2023,P6,9106591,-848.00 ,848.00 ,2205,Window Cleaning,1006,Edwinstowe,33.33 
Nottinghamshire Fire and Rescue Service ,100557,NCC Sundry Debtors,NCC Sundry Debtors,Operational Responses,4,202403,01/06/2023,P6,9106591,-848.00 ,848.00 ,2205,Window Cleaning,1007,Warsop,21.67 
Nottinghamshire Fire and Rescue Service ,100557,NCC Sundry Debtors,NCC Sundry Debtors,Operational Responses,4,202403,01/06/2023,P6,9106591,-848.00 ,848.00 ,2205,Window Cleaning,1008,Worksop,20.00 
Nottinghamshire Fire and Rescue Service ,100557,NCC Sundry Debtors,NCC Sundry Debtors,Operational Responses,4,202403,01/06/2023,P6,9106591,-848.00 ,848.00 ,2205,Window Cleaning,1010,Harworth,21.67 
Nottinghamshire Fire and Rescue Service ,100557,NCC Sundry Debtors,NCC Sundry Debtors,Operational Responses,4,202403,01/06/2023,P6,9106591,-848.00 ,848.00 ,2205,Window Cleaning,1011,Misterton,20.00 
Nottinghamshire Fire and Rescue Service ,100557,NCC Sundry Debtors,NCC Sundry Debtors,Operational Responses,4,202403,01/06/2023,P6,9106591,-848.00 ,848.00 ,2205,Window Cleaning,1012,Retford,50.00 
Nottinghamshire Fire and Rescue Service ,100557,NCC Sundry Debtors,NCC Sundry Debtors,Operational Responses,4,202403,01/06/2023,P6,9106591,-848.00 ,848.00 ,2205,Window Cleaning,1013,Tuxford,18.33 
Nottinghamshire Fire and Rescue Service ,100557,NCC Sundry Debtors,NCC Sundry Debtors,Operational Responses,4,202403,01/06/2023,P6,9106591,-848.00 ,848.00 ,2205,Window Cleaning,1014,Southwell,16.67 
Nottinghamshire Fire and Rescue Service ,100557,NCC Sundry Debtors,NCC Sundry Debtors,Operational Responses,4,202403,01/06/2023,P6,9106591,-848.00 ,848.00 ,2205,Window Cleaning,1015,Collingham,18.33 
Nottinghamshire Fire and Rescue Service ,100557,NCC Sundry Debtors,NCC Sundry Debtors,Operational Responses,4,202403,01/06/2023,P6,9106591,-848.00 ,848.00 ,2205,Window Cleaning,1016,Newark,25.00 
Nottinghamshire Fire and Rescue Service ,100557,NCC Sundry Debtors,NCC Sundry Debtors,Operational Responses,4,202403,01/06/2023,P6,9106591,-848.00 ,848.00 ,2205,Window Cleaning,1017,Bingham,16.67 
Nottinghamshire Fire and Rescue Service ,100557,NCC Sundry Debtors,NCC Sundry Debtors,Operational Responses,4,202403,01/06/2023,P6,9106591,-848.00 ,848.00 ,2205,Window Cleaning,1019,West Bridgford,50.00 
Nottinghamshire Fire and Rescue Service ,100557,NCC Sundry Debtors,NCC Sundry Debtors,Operational Responses,4,202403,01/06/2023,P6,9106591,-848.00 ,848.00 ,2205,Window Cleaning,1020,Stockhill,50.00 
Nottinghamshire Fire and Rescue Service ,100557,NCC Sundry Debtors,NCC Sundry Debtors,Operational Responses,4,202403,01/06/2023,P6,9106591,-848.00 ,848.00 ,2205,Window Cleaning,1023,Stapleford,18.33 
Nottinghamshire Fire and Rescue Service ,100557,NCC Sundry Debtors,NCC Sundry Debtors,Operational Responses,4,202403,01/06/2023,P6,9106591,-848.00 ,848.00 ,2205,Window Cleaning,1024,Eastwood,20.00 
Nottinghamshire Fire and Rescue Service ,100557,NCC Sundry Debtors,NCC Sundry Debtors,Operational Responses,4,202403,01/06/2023,P6,9106591,-848.00 ,848.00 ,2205,Window Cleaning,1026,Arnold,25.00 
Nottinghamshire Fire and Rescue Service ,100557,NCC Sundry Debtors,NCC Sundry Debtors,Operational Responses,4,202403,01/06/2023,P6,9106591,-848.00 ,848.00 ,2205,Window Cleaning,1027,Carlton,33.33 
Nottinghamshire Fire and Rescue Service ,100557,NCC Sundry Debtors,NCC Sundry Debtors,Operational Responses,4,202403,01/06/2023,P6,9106591,-848.00 ,848.00 ,2205,Window Cleaning,1028,East Leake,16.67 
Nottinghamshire Fire and Rescue Service ,100557,NCC Sundry Debtors,NCC Sundry Debtors,Operational Responses,4,202403,01/06/2023,P6,9106591,-848.00 ,848.00 ,2205,Window Cleaning,1029,Highfields Station,66.67 
Nottinghamshire Fire and Rescue Service ,100557,NCC Sundry Debtors,NCC Sundry Debtors,Management & Support Services,4,202403,01/06/2023,P6,9106591,-848.00 ,848.00 ,2205,Window Cleaning,1030,Service Development Centre,20.00 
Nottinghamshire Fire and Rescue Service ,104280,Fischer Panda Uk Ltd,Fischer Panda Uk Ltd,Management & Support Services,5,202403,30/06/2023,P6,9107035,"-2,811.00 ","2,811.00 ",3002,Purchase of Vehicle Equipment,2084,Engineering,"2,342.50 "
Nottinghamshire Fire and Rescue Service ,103820,VIA East Midlands Ltd,VIA East Midlands Ltd,Management & Support Services,5,202403,02/06/2023,P6,9106900,"-12,127.79 ","12,127.79 ",3100,Fleet Maintenance - Planned,2084,Engineering,"10,106.49 "
Nottinghamshire Fire and Rescue Service ,101100,Angloco Limited,Angloco Limited,Management & Support Services,1,202403,27/05/2023,P6,9106905,"-1,888.12 ","1,888.12 ",3100,Fleet Maintenance - Planned,2084,Engineering,"1,573.43 "
Nottinghamshire Fire and Rescue Service ,102364,Woodway Engineering Limited,Woodway Engineering Limited,Management & Support Services,1,202403,28/06/2023,P6,9107024,-360.00 ,360.00 ,3101,Fleet Modification,2084,Engineering,300.00 
Nottinghamshire Fire and Rescue Service ,102211,Promotional Displays & Signs Company,Promotional Displays & Signs Company,Management & Support Services,1,202403,07/06/2023,P6,9106683,-518.40 ,518.40 ,3102,Vehicle Maintenance Outsourced,2084,Engineering,432.00 
Nottinghamshire Fire and Rescue Service ,102228,Keltruck Limited,Keltruck Limited,Management & Support Services,1,202403,09/06/2023,P6,9106723,-991.80 ,991.80 ,3102,Vehicle Maintenance Outsourced,2084,Engineering,826.50 
Nottinghamshire Fire and Rescue Service ,102228,Keltruck Limited,Keltruck Limited,Management & Support Services,1,202403,20/06/2023,P6,9106948,-990.64 ,990.64 ,3102,Vehicle Maintenance Outsourced,2084,Engineering,825.53 
Nottinghamshire Fire and Rescue Service ,101100,Angloco Limited,Angloco Limited,Management & Support Services,1,202403,27/05/2023,P6,9106760,"-3,426.22 ","3,426.22 ",3103,Fleet Maintenance - Unplanned,2084,Engineering,"2,855.19 "
Nottinghamshire Fire and Rescue Service ,103820,VIA East Midlands Ltd,VIA East Midlands Ltd,Management & Support Services,5,202403,02/06/2023,P6,9106901,"-31,621.86 ","31,621.86 ",3103,Fleet Maintenance - Unplanned,2084,Engineering,"26,351.55 "
Nottinghamshire Fire and Rescue Service ,104145,Exeros Technologies Limited,Exeros Technologies Limited,Management & Support Services,5,202403,21/06/2023,P6,9106947,-630.00 ,630.00 ,3104,Fleet - Accident Repairs,2084,Engineering,525.00 
Nottinghamshire Fire and Rescue Service ,103766,CERTAS,CERTAS,Operational Responses,5,202403,01/06/2023,P6,9106656,"-10,373.81 ","10,373.81 ",3200,Fuel - Vehicle,1020,Stockhill,"8,644.84 "
Nottinghamshire Fire and Rescue Service ,103766,CERTAS,CERTAS,Operational Responses,5,202403,09/06/2023,P6,9106792,"-8,647.51 ","8,647.51 ",3200,Fuel - Vehicle,1019,West Bridgford,"7,206.26 "
Nottinghamshire Fire and Rescue Service ,103766,CERTAS,CERTAS,Operational Responses,5,202403,11/05/2023,P6,9106840,"-9,948.49 ","9,948.49 ",3200,Fuel - Vehicle,1005,Ashfield,"8,290.41 "
Nottinghamshire Fire and Rescue Service ,103766,CERTAS,CERTAS,Operational Responses,5,202403,14/06/2023,P6,9106988,"-8,240.29 ","8,240.29 ",3200,Fuel - Vehicle,1006,Edwinstowe,"6,866.91 "
Nottinghamshire Fire and Rescue Service ,103766,CERTAS,CERTAS,Operational Responses,5,202403,14/06/2023,P6,9106989,"-11,105.03 ","11,105.03 ",3200,Fuel - Vehicle,1008,Worksop,"9,254.19 "
Nottinghamshire Fire and Rescue Service ,103942,The Lodge Tyre Co. Limited,The Lodge Tyre Co. Limited,Management & Support Services,5,202403,31/05/2023,P6,9106658,"-2,877.81 ","2,877.81 ",3202,Tyres,2084,Engineering,"2,398.20 "
Nottinghamshire Fire and Rescue Service ,100321,Drivercheck Ltd,Drivercheck Ltd,Management & Support Services,1,202403,31/05/2023,P6,9106659,-752.40 ,752.40 ,3203,Motor Tax / Licenses,2084,Engineering,627.00 
Nottinghamshire Fire and Rescue Service ,104196,Central Cars Nottingham Limited,Central Cars Nottingham Limited,Management & Support Services,5,202403,08/05/2023,P6,9106843,-349.92 ,349.92 ,3504,Public Transport,2054,Equalities Team,291.60 
Nottinghamshire Fire and Rescue Service ,104128,LeasePlan UK Limited,LeasePlan UK Limited,Management & Support Services,5,202403,31/05/2023,P6,9106575,"-1,107.78 ","1,107.78 ",4000,Operational Equipment Purchase,2068,Prevention,923.16 
Nottinghamshire Fire and Rescue Service ,104247,Farndon Harbour Moorings Ltd. T/S Farndon Marina,Farndon Harbour Moorings Ltd. T/S Farndon Marina,Management & Support Services,5,202403,08/06/2023,P6,9106721,-649.83 ,649.83 ,4000,Operational Equipment Purchase,2084,Engineering,541.52 
Nottinghamshire Fire and Rescue Service ,101190,Lyon Equipment Limited,Lyon Equipment Limited,Management & Support Services,1,202403,09/06/2023,P6,9106726,-662.28 ,662.28 ,4000,Operational Equipment Purchase,2084,Engineering,551.90 
Nottinghamshire Fire and Rescue Service ,103443,Terberg DTS UK Limited,Terberg DTS UK Limited,Management & Support Services,5,202403,09/06/2023,P6,9106761,-773.16 ,773.16 ,4000,Operational Equipment Purchase,2084,Engineering,644.30 
Nottinghamshire Fire and Rescue Service ,103443,Terberg DTS UK Limited,Terberg DTS UK Limited,Management & Support Services,5,202403,15/06/2023,P6,9106831,"-1,820.28 ","1,820.28 ",4000,Operational Equipment Purchase,2084,Engineering,"1,516.90 "
Nottinghamshire Fire and Rescue Service ,100437,Nottinghamshire Fire Safety Limited,Nottinghamshire Fire Safety Limited,Operational Responses,1,202403,16/06/2023,P6,9106858,-319.53 ,319.53 ,4000,Operational Equipment Purchase,1003,London Road,266.28 
Nottinghamshire Fire and Rescue Service ,100279,S P Services,S P Services,Management & Support Services,1,202403,22/06/2023,P6,9106926,"-2,700.00 ","2,700.00 ",4000,Operational Equipment Purchase,2084,Engineering,"2,250.00 "
Nottinghamshire Fire and Rescue Service ,102070,Life Safety Distribution AG,Life Safety Distribution AG,Management & Support Services,1,202403,15/06/2023,P6,9106953,"-1,020.84 ","1,020.84 ",4000,Operational Equipment Purchase,2084,Engineering,10.70 
Nottinghamshire Fire and Rescue Service ,102070,Life Safety Distribution AG,Life Safety Distribution AG,Management & Support Services,1,202403,15/06/2023,P6,9106953,"-1,020.84 ","1,020.84 ",4000,Operational Equipment Purchase,2084,Engineering,840.00 
Nottinghamshire Fire and Rescue Service ,100446,Speedings Limited,Speedings Limited,Management & Support Services,1,202403,16/05/2023,P6,9106838,"-1,140.00 ","1,140.00 ",4002,Breathing Apparatus,2084,Engineering,15.00 
Nottinghamshire Fire and Rescue Service ,100446,Speedings Limited,Speedings Limited,Management & Support Services,1,202403,16/05/2023,P6,9106838,"-1,140.00 ","1,140.00 ",4002,Breathing Apparatus,2084,Engineering,935.00 
Nottinghamshire Fire and Rescue Service ,103094,Draeger Safety UK Limited,Draeger Safety UK Limited,Management & Support Services,5,202403,27/06/2023,P6,9107004,"-1,269.02 ","1,269.02 ",4002,Breathing Apparatus,2084,Engineering,"1,057.52 "
Nottinghamshire Fire and Rescue Service ,102203,Flogas Britian Limited,Flogas Britian Limited,Management & Support Services,1,202403,15/06/2023,P6,9107014,"-1,289.57 ","1,289.57 ",4006,Oxygen and Other Gases,2084,Engineering,"1,074.64 "
Nottinghamshire Fire and Rescue Service ,104177,BlueFort Security Limited,BlueFort Security Limited,Management & Support Services,5,202403,01/06/2023,P6,9106558,"-16,380.00 ","16,380.00 ",4101,Computer Software Maintenance Contracts,2097,ICT Service Operations,"13,650.00 "
Nottinghamshire Fire and Rescue Service ,103582,Softcat Limited,Softcat Limited,Management & Support Services,5,202403,31/05/2023,P6,9106560,"-18,655.22 ","18,655.22 ",4101,Computer Software Maintenance Contracts,2097,ICT Service Operations,"15,546.01 "
Nottinghamshire Fire and Rescue Service ,103795,Idox Software Ltd,Idox Software Ltd,Management & Support Services,5,202403,19/05/2023,P6,9106562,"-2,040.00 ","2,040.00 ",4101,Computer Software Maintenance Contracts,2052,Performance and Systems Admin,"1,700.00 "
Nottinghamshire Fire and Rescue Service ,103483,Risual Limited,Risual Limited,Management & Support Services,5,202403,18/04/2023,P6,9106728,"-15,812.89 ","15,812.89 ",4101,Computer Software Maintenance Contracts,2097,ICT Service Operations,"13,177.41 "
Nottinghamshire Fire and Rescue Service ,103483,Risual Limited,Risual Limited,Management & Support Services,5,202403,18/05/2023,P6,9106729,"-15,191.18 ","15,191.18 ",4101,Computer Software Maintenance Contracts,2097,ICT Service Operations,"12,659.32 "
Nottinghamshire Fire and Rescue Service ,103373,GTT (Interoute/Easynet),GTT (Interoute/Easynet),Management & Support Services,5,202403,25/05/2023,P6,9106730,"-20,511.17 ","20,511.17 ",4101,Computer Software Maintenance Contracts,2095,ICT Digital Transformation,"17,092.64 "
Nottinghamshire Fire and Rescue Service ,101782,Derbyshire Fire Authority,Derbyshire Fire Authority,Operational Responses,4,202403,09/06/2023,P6,9106769,"-17,629.82 ","17,629.82 ",4101,Computer Software Maintenance Contracts,2005,Fire Control,"12,531.40 "
Nottinghamshire Fire and Rescue Service ,104172,Silktide Limited,Silktide Limited,Management & Support Services,5,202403,05/06/2023,P6,9106848,"-2,645.04 ","2,645.04 ",4101,Computer Software Maintenance Contracts,2097,ICT Service Operations,"2,204.20 "
Nottinghamshire Fire and Rescue Service ,103582,Softcat Limited,Softcat Limited,Management & Support Services,5,202403,31/05/2023,P6,9106895,"-18,655.22 ","18,655.22 ",4101,Computer Software Maintenance Contracts,2097,ICT Service Operations,"15,546.01 "
Nottinghamshire Fire and Rescue Service ,102261,Airwave Solutions Ltd,Airwave Solutions Ltd,Management & Support Services,1,202403,09/06/2023,P6,9106910,"-10,076.41 ","10,076.41 ",4101,Computer Software Maintenance Contracts,2097,ICT Service Operations,"8,397.01 "
Nottinghamshire Fire and Rescue Service ,103871,Zoho Corporation Private Limited,Zoho Corporation Private Limited,Management & Support Services,5,202403,23/06/2023,P6,9106939,"-1,155.60 ","1,155.60 ",4101,Computer Software Maintenance Contracts,2097,ICT Service Operations,963.00 
Nottinghamshire Fire and Rescue Service ,103373,GTT (Interoute/Easynet),GTT (Interoute/Easynet),Management & Support Services,5,202403,25/06/2023,P6,9107010,"-16,318.93 ","16,318.93 ",4101,Computer Software Maintenance Contracts,2095,ICT Digital Transformation,"13,599.11 "
Nottinghamshire Fire and Rescue Service ,103373,GTT (Interoute/Easynet),GTT (Interoute/Easynet),Management & Support Services,5,202403,25/05/2023,P6,9106701,"3,559.43 ","-3,559.43 ",4101,Computer Software Maintenance Contracts,2095,ICT Digital Transformation,"-2,966.19 "
Nottinghamshire Fire and Rescue Service ,100467,Kingsfield Computer Products Ltd,Kingsfield Computer Products Ltd,Management & Support Services,1,202403,21/06/2023,P6,9106904,-705.60 ,705.60 ,4102,Computer Consumables,2097,ICT Service Operations,588.00 
Nottinghamshire Fire and Rescue Service ,100467,Kingsfield Computer Products Ltd,Kingsfield Computer Products Ltd,Management & Support Services,1,202403,22/06/2023,P6,9106914,-690.91 ,690.91 ,4102,Computer Consumables,2097,ICT Service Operations,575.76 
Nottinghamshire Fire and Rescue Service ,103483,Risual Limited,Risual Limited,Management & Support Services,5,202403,18/05/2023,P6,9106652,"-1,802.96 ","1,802.96 ",4301,Phones - Landline,2097,ICT Service Operations,"1,502.47 "
Nottinghamshire Fire and Rescue Service ,103092,Daisy Corporate Services Trading Limited,Daisy Corporate Services Trading Limited,Management & Support Services,1,202403,01/06/2023,P6,9106655,"-1,824.83 ","1,824.83 ",4301,Phones - Landline,2096,ICT Service Transformation,"1,520.69 "
Nottinghamshire Fire and Rescue Service ,102420,BT PLC,BT PLC,Management & Support Services,1,202403,07/06/2023,P6,9106842,"-1,415.74 ","1,415.74 ",4301,Phones - Landline,2097,ICT Service Operations,"1,179.79 "
Nottinghamshire Fire and Rescue Service ,103483,Risual Limited,Risual Limited,Management & Support Services,5,202403,19/06/2023,P6,9106962,"-1,820.04 ","1,820.04 ",4301,Phones - Landline,2097,ICT Service Operations,"1,516.70 "
Nottinghamshire Fire and Rescue Service ,103887,PageOne Communications Limited - Part Of Capita plc,PageOne Communications Limited - Part Of Capita plc,Management & Support Services,5,202403,22/06/2023,P6,9106912,"-8,538.00 ","8,538.00 ",4303,Pagers,2097,ICT Service Operations,"7,115.00 "
Nottinghamshire Fire and Rescue Service ,101851,Complete Business Solutions Group Ltd,Complete Business Solutions Group Ltd,Management & Support Services,1,202403,13/06/2023,P6,9107002,"-2,071.92 ","2,071.92 ",4400,Clothing and Uniform,2086,Procurement,"1,726.60 "
Nottinghamshire Fire and Rescue Service ,102376,Bristol Uniforms Limited,Bristol Uniforms Limited,Prevention and Education ,1,202403,06/06/2023,P6,9106646,"-2,595.96 ","2,595.96 ",4401,Protective Clothing,2026,Fire Investigation,"1,081.65 "
Nottinghamshire Fire and Rescue Service ,103777,BTTG Testing & Certification Ltd,BTTG Testing & Certification Ltd,Management & Support Services,5,202403,23/06/2023,P6,9107017,"-1,260.00 ","1,260.00 ",4401,Protective Clothing,2086,Procurement,"1,050.00 "
Nottinghamshire Fire and Rescue Service ,102495,Rosenbauer UK Plc,Rosenbauer UK Plc,Management & Support Services,1,202403,14/06/2023,P6,9107033,"-1,381.28 ","1,381.28 ",4401,Protective Clothing,2086,Procurement,"1,151.07 "
Nottinghamshire Fire and Rescue Service ,102376,Bristol Uniforms Limited,Bristol Uniforms Limited,Management & Support Services,1,202403,31/05/2023,P6,9106695,"-9,355.69 ","9,355.69 ",4402,Uniform and Protectice Clothing Repairs,2086,Procurement,"1,872.24 "
Nottinghamshire Fire and Rescue Service ,102376,Bristol Uniforms Limited,Bristol Uniforms Limited,Management & Support Services,1,202403,31/05/2023,P6,9106695,"-9,355.69 ","9,355.69 ",4403,Laundry and Dry Cleaning,2086,Procurement,"5,924.17 "
Nottinghamshire Fire and Rescue Service ,103678,Fitness Warehouse Limited t/a Gym Gear,Fitness Warehouse Limited t/a Gym Gear,Management & Support Services,5,202403,19/06/2023,P6,9106981,-253.43 ,253.43 ,4510,Fitness Equipment,2061,Occupational Health & Fitness,211.19 
Nottinghamshire Fire and Rescue Service ,103678,Fitness Warehouse Limited t/a Gym Gear,Fitness Warehouse Limited t/a Gym Gear,Management & Support Services,5,202403,19/06/2023,P6,9106982,-419.94 ,419.94 ,4510,Fitness Equipment,2061,Occupational Health & Fitness,329.95 
Nottinghamshire Fire and Rescue Service ,103678,Fitness Warehouse Limited t/a Gym Gear,Fitness Warehouse Limited t/a Gym Gear,Management & Support Services,5,202403,19/06/2023,P6,9106983,-419.15 ,419.15 ,4510,Fitness Equipment,2061,Occupational Health & Fitness,329.29 
Nottinghamshire Fire and Rescue Service ,103678,Fitness Warehouse Limited t/a Gym Gear,Fitness Warehouse Limited t/a Gym Gear,Management & Support Services,5,202403,19/06/2023,P6,9106986,-270.00 ,270.00 ,4510,Fitness Equipment,2061,Occupational Health & Fitness,225.00 
Nottinghamshire Fire and Rescue Service ,102735,Jpen Medical,Jpen Medical,Management & Support Services,5,202403,04/05/2023,P6,9106581,-260.64 ,260.64 ,4512,Medical Equipment Maintenance,2061,Occupational Health & Fitness,217.20 
Nottinghamshire Fire and Rescue Service ,103695,Pulp Friction Smoothie Bar CIC,Pulp Friction Smoothie Bar CIC,Management & Support Services,5,202403,19/05/2023,P6,9106712,-388.80 ,388.80 ,4523,Catering/Food & Beverages,2050,Corporate Support,324.00 
Nottinghamshire Fire and Rescue Service ,101819,South Forest,South Forest,Management & Support Services,1,202403,27/04/2023,P6,9106841,"-1,370.40 ","1,370.40 ",4523,Catering/Food & Beverages,2093,Command Suite,"1,142.00 "
Nottinghamshire Fire and Rescue Service ,101929,Selecta UK,Selecta UK,Fire Service Emergency Planning & Civil Defence,1,202403,31/05/2023,P6,9106567,-530.88 ,530.88 ,4524,Drinking Water,2009,Resiliance & Emergency Planning,442.40 
Nottinghamshire Fire and Rescue Service ,101929,Selecta UK,Selecta UK,Operational Responses,1,202403,02/06/2023,P6,9106837,-292.32 ,292.32 ,4524,Drinking Water,1008,Worksop,243.60 
Nottinghamshire Fire and Rescue Service ,101929,Selecta UK,Selecta UK,Operational Responses,1,202403,15/06/2023,P6,9106855,-265.44 ,265.44 ,4524,Drinking Water,1005,Ashfield,221.20 
Nottinghamshire Fire and Rescue Service ,101929,Selecta UK,Selecta UK,Operational Responses,1,202403,15/06/2023,P6,9106909,-292.32 ,292.32 ,4524,Drinking Water,1016,Newark,243.60 
Nottinghamshire Fire and Rescue Service ,101929,Selecta UK,Selecta UK,Management & Support Services,1,202403,23/06/2023,P6,9106960,-265.44 ,265.44 ,4524,Drinking Water,2059,Corporate Training,221.20 
Nottinghamshire Fire and Rescue Service ,100357,Eastern Shires Purchasing Organisation,Eastern Shires Purchasing Organisation,Operational Responses,1,202403,26/05/2023,P6,9106777,-433.80 ,433.80 ,4532,Stationery,1008,Worksop,361.50 
Nottinghamshire Fire and Rescue Service ,100423,Royal Mail (Bacs),Royal Mail (Bacs),Management & Support Services,1,202403,07/06/2023,P6,9106839,"-1,044.00 ","1,044.00 ",4533,Postage,2075,Service Support Hub,870.00 
Nottinghamshire Fire and Rescue Service ,103589,Hot Pack International,Hot Pack International,Management & Support Services,5,202403,01/06/2023,P6,9106551,"-2,127.60 ","2,127.60 ",4534,Carriage and Packaging,9999,Default,63.00 
Nottinghamshire Fire and Rescue Service ,102495,Rosenbauer UK Plc,Rosenbauer UK Plc,Management & Support Services,1,202403,31/05/2023,P6,9106576,-350.64 ,350.64 ,4534,Carriage and Packaging,9999,Default,9.80 
Nottinghamshire Fire and Rescue Service ,103589,Hot Pack International,Hot Pack International,Management & Support Services,5,202403,05/06/2023,P6,9106713,-479.40 ,479.40 ,4534,Carriage and Packaging,9999,Default,29.90 
Nottinghamshire Fire and Rescue Service ,102306,Northern Diver (International) Ltd,Northern Diver (International) Ltd,Management & Support Services,1,202403,08/06/2023,P6,9106742,-289.80 ,289.80 ,4534,Carriage and Packaging,2086,Procurement,9.50 
Nottinghamshire Fire and Rescue Service ,102309,Walter Frank & Sons Limited,Walter Frank & Sons Limited,Management & Support Services,1,202403,09/06/2023,P6,9106759,-328.20 ,328.20 ,4534,Carriage and Packaging,2086,Procurement,18.50 
Nottinghamshire Fire and Rescue Service ,102495,Rosenbauer UK Plc,Rosenbauer UK Plc,Management & Support Services,1,202403,12/06/2023,P6,9106763,"-1,865.88 ","1,865.88 ",4534,Carriage and Packaging,2086,Procurement,14.90 
Nottinghamshire Fire and Rescue Service ,102306,Northern Diver (International) Ltd,Northern Diver (International) Ltd,Management & Support Services,1,202403,08/03/2023,P6,9106913,"-1,071.00 ","1,071.00 ",4534,Carriage and Packaging,9999,Default,10.50 
Nottinghamshire Fire and Rescue Service ,103678,Fitness Warehouse Limited t/a Gym Gear,Fitness Warehouse Limited t/a Gym Gear,Management & Support Services,5,202403,19/06/2023,P6,9106982,-419.94 ,419.94 ,4534,Carriage and Packaging,2061,Occupational Health & Fitness,20.00 
Nottinghamshire Fire and Rescue Service ,103678,Fitness Warehouse Limited t/a Gym Gear,Fitness Warehouse Limited t/a Gym Gear,Management & Support Services,5,202403,19/06/2023,P6,9106983,-419.15 ,419.15 ,4534,Carriage and Packaging,2061,Occupational Health & Fitness,20.00 
Nottinghamshire Fire and Rescue Service ,103148,Kite Packaging Limited,Kite Packaging Limited,Management & Support Services,5,202403,12/06/2023,P6,9107008,-266.94 ,266.94 ,4534,Carriage and Packaging,2086,Procurement,222.45 
Nottinghamshire Fire and Rescue Service ,102508,Collins Nets Ltd,Collins Nets Ltd,Management & Support Services,1,202403,20/06/2023,P6,9107020,-318.60 ,318.60 ,4534,Carriage and Packaging,2086,Procurement,7.50 
Nottinghamshire Fire and Rescue Service ,100301,Brissco Equipment Limited,Brissco Equipment Limited,Management & Support Services,1,202403,13/06/2023,P6,9106782,406.38 ,-406.38 ,4541,Hydrant Maintenance,2084,Engineering,-338.65 
Nottinghamshire Fire and Rescue Service ,103064,Synergy Health Laboratory Services Ltd,Synergy Health Laboratory Services Ltd,Management & Support Services,5,202403,31/03/2023,P6,9106702,-498.64 ,498.64 ,4551,Medical Fees,2061,Occupational Health & Fitness,159.23 
Nottinghamshire Fire and Rescue Service ,103064,Synergy Health Laboratory Services Ltd,Synergy Health Laboratory Services Ltd,Management & Support Services,5,202403,31/03/2023,P6,9106702,-498.64 ,498.64 ,4551,Medical Fees,2061,Occupational Health & Fitness,256.30 
Nottinghamshire Fire and Rescue Service ,103064,Synergy Health Laboratory Services Ltd,Synergy Health Laboratory Services Ltd,Management & Support Services,5,202403,26/05/2023,P6,9106709,-684.18 ,684.18 ,4551,Medical Fees,2061,Occupational Health & Fitness,570.15 
Nottinghamshire Fire and Rescue Service ,103064,Synergy Health Laboratory Services Ltd,Synergy Health Laboratory Services Ltd,Management & Support Services,5,202403,08/06/2023,P6,9106746,"-1,077.88 ","1,077.88 ",4551,Medical Fees,2061,Occupational Health & Fitness,898.23 
Nottinghamshire Fire and Rescue Service ,103064,Synergy Health Laboratory Services Ltd,Synergy Health Laboratory Services Ltd,Management & Support Services,5,202403,27/02/2023,P6,9107009,-766.09 ,766.09 ,4551,Medical Fees,2061,Occupational Health & Fitness,210.49 
Nottinghamshire Fire and Rescue Service ,103064,Synergy Health Laboratory Services Ltd,Synergy Health Laboratory Services Ltd,Management & Support Services,5,202403,27/02/2023,P6,9107009,-766.09 ,766.09 ,4551,Medical Fees,2061,Occupational Health & Fitness,427.92 
Nottinghamshire Fire and Rescue Service ,101844,Nottinghamshire Relate,Nottinghamshire Relate,Management & Support Services,1,202403,28/04/2023,P6,9106648,"-1,000.00 ","1,000.00 ",4552,Occupational Health Costs,2061,Occupational Health & Fitness,"1,000.00 "
Nottinghamshire Fire and Rescue Service ,104220,Health 2 Employment,Health 2 Employment,Management & Support Services,5,202403,30/05/2023,P6,9106649,-596.00 ,596.00 ,4552,Occupational Health Costs,2061,Occupational Health & Fitness,596.00 
Nottinghamshire Fire and Rescue Service ,104115,Valentine Occupational Health Limited,Valentine Occupational Health Limited,Management & Support Services,5,202403,02/06/2023,P6,9106650,-864.00 ,864.00 ,4552,Occupational Health Costs,2061,Occupational Health & Fitness,720.00 
Nottinghamshire Fire and Rescue Service ,101844,Nottinghamshire Relate,Nottinghamshire Relate,Management & Support Services,1,202403,31/05/2023,P6,9106664,-800.00 ,800.00 ,4552,Occupational Health Costs,2061,Occupational Health & Fitness,800.00 
Nottinghamshire Fire and Rescue Service ,104220,Health 2 Employment,Health 2 Employment,Management & Support Services,5,202403,09/06/2023,P6,9106903,-596.00 ,596.00 ,4552,Occupational Health Costs,2061,Occupational Health & Fitness,596.00 
Nottinghamshire Fire and Rescue Service ,104220,Health 2 Employment,Health 2 Employment,Management & Support Services,5,202403,19/06/2023,P6,9106927,-596.00 ,596.00 ,4552,Occupational Health Costs,2061,Occupational Health & Fitness,596.00 
Nottinghamshire Fire and Rescue Service ,102218,Kays Medical Ltd,Kays Medical Ltd,Management & Support Services,5,202403,22/06/2023,P6,9106990,-378.53 ,378.53 ,4552,Occupational Health Costs,2061,Occupational Health & Fitness,315.44 
Nottinghamshire Fire and Rescue Service ,104220,Health 2 Employment,Health 2 Employment,Management & Support Services,5,202403,26/06/2023,P6,9107039,-298.00 ,298.00 ,4552,Occupational Health Costs,2061,Occupational Health & Fitness,298.00 
Nottinghamshire Fire and Rescue Service ,103866,Richardson Associates (UK) Limited,Richardson Associates (UK) Limited,Management & Support Services,5,202403,14/06/2023,P6,9106784,"-4,500.00 ","4,500.00 ",4554,Consultancy Fees - Non Estates Related,2054,Equalities Team,"3,750.00 "
Nottinghamshire Fire and Rescue Service ,103582,Softcat Limited,Softcat Limited,Management & Support Services,5,202403,04/04/2023,P6,9106834,"-1,406.26 ","1,406.26 ",4554,Consultancy Fees - Non Estates Related,2058,HR Support,"1,171.88 "
Nottinghamshire Fire and Rescue Service ,104223,The People Experience Hub,The People Experience Hub,Management & Support Services,5,202403,16/05/2023,P6,9106835,"-9,600.00 ","9,600.00 ",4554,Consultancy Fees - Non Estates Related,2054,Equalities Team,"8,000.00 "
Nottinghamshire Fire and Rescue Service ,103257,Midland HR,Midland HR,Management & Support Services,5,202403,16/06/2023,P6,9106894,"-2,850.05 ","2,850.05 ",4554,Consultancy Fees - Non Estates Related,2058,HR Support,"2,375.04 "
Nottinghamshire Fire and Rescue Service ,101000,C F S Messing Account Stockhill,C F S Messing Account Stockhill,Operational Responses,8,202403,01/06/2023,P6,9106559,-263.00 ,263.00 ,4560,Subsistence,1020,Stockhill,263.00 
Nottinghamshire Fire and Rescue Service ,100058,National Fire Chiefs Council,National Fire Chiefs Council,Management & Support Services,1,202403,01/04/2023,P6,9106768,"-66,000.00 ","66,000.00 ",4581,Subscriptions,2093,Command Suite,"55,000.00 "
Nottinghamshire Fire and Rescue Service ,102319,Experian Ltd,Experian Ltd,"Statutory Inspection, Certification & Enforcement",1,202403,31/03/2023,P6,9106868,"-11,002.07 ","11,002.07 ",4581,Subscriptions,2021,Fire Protection,"9,168.39 "
Nottinghamshire Fire and Rescue Service ,102107,Bits At Micks,Bits At Micks,Operational Responses,1,202403,31/03/2023,P6,9106584,-784.08 ,784.08 ,4594,Training/ Teaching Equipment,1019,West Bridgford,435.60 
Nottinghamshire Fire and Rescue Service ,102107,Bits At Micks,Bits At Micks,Operational Responses,1,202403,31/03/2023,P6,9106584,-784.08 ,784.08 ,4594,Training/ Teaching Equipment,1020,Stockhill,217.80 
Nottinghamshire Fire and Rescue Service ,102107,Bits At Micks,Bits At Micks,Operational Responses,1,202403,30/04/2023,P6,9106585,"-1,045.44 ","1,045.44 ",4594,Training/ Teaching Equipment,1019,West Bridgford,435.60 
Nottinghamshire Fire and Rescue Service ,102107,Bits At Micks,Bits At Micks,Operational Responses,1,202403,30/04/2023,P6,9106585,"-1,045.44 ","1,045.44 ",4594,Training/ Teaching Equipment,1020,Stockhill,217.80 
Nottinghamshire Fire and Rescue Service ,102107,Bits At Micks,Bits At Micks,Management & Support Services,1,202403,30/04/2023,P6,9106585,"-1,045.44 ","1,045.44 ",4594,Training/ Teaching Equipment,2059,Corporate Training,217.80 
Nottinghamshire Fire and Rescue Service ,102107,Bits At Micks,Bits At Micks,Operational Responses,1,202403,31/05/2023,P6,9106586,"-2,090.88 ","2,090.88 ",4594,Training/ Teaching Equipment,1003,London Road,435.60 
Nottinghamshire Fire and Rescue Service ,102107,Bits At Micks,Bits At Micks,Operational Responses,1,202403,31/05/2023,P6,9106586,"-2,090.88 ","2,090.88 ",4594,Training/ Teaching Equipment,1017,Bingham,217.80 
Nottinghamshire Fire and Rescue Service ,102107,Bits At Micks,Bits At Micks,Operational Responses,1,202403,31/05/2023,P6,9106586,"-2,090.88 ","2,090.88 ",4594,Training/ Teaching Equipment,1020,Stockhill,217.80 
Nottinghamshire Fire and Rescue Service ,102107,Bits At Micks,Bits At Micks,Operational Responses,1,202403,31/05/2023,P6,9106586,"-2,090.88 ","2,090.88 ",4594,Training/ Teaching Equipment,1023,Stapleford,435.60 
Nottinghamshire Fire and Rescue Service ,102107,Bits At Micks,Bits At Micks,Operational Responses,1,202403,31/05/2023,P6,9106586,"-2,090.88 ","2,090.88 ",4594,Training/ Teaching Equipment,1027,Carlton,435.60 
Nottinghamshire Fire and Rescue Service ,101796,Ruth Lee Limited,Ruth Lee Limited,Management & Support Services,1,202403,31/05/2023,P6,9106662,"-1,554.00 ","1,554.00 ",4594,Training/ Teaching Equipment,2059,Corporate Training,"1,295.00 "
Nottinghamshire Fire and Rescue Service ,103849,Vision Support Services Ltd,Vision Support Services Ltd,Management & Support Services,5,202403,22/06/2023,P6,9106945,"-1,468.56 ","1,468.56 ",4600,Community Safety Delivery Consumables,2068,Prevention,"1,223.80 "
Nottinghamshire Fire and Rescue Service ,103849,Vision Support Services Ltd,Vision Support Services Ltd,Operational Responses,5,202403,26/06/2023,P6,9106994,-598.80 ,598.80 ,4600,Community Safety Delivery Consumables,1020,Stockhill,499.00 
Nottinghamshire Fire and Rescue Service ,103849,Vision Support Services Ltd,Vision Support Services Ltd,Operational Responses,5,202403,26/06/2023,P6,9107001,"-1,902.83 ","1,902.83 ",4600,Community Safety Delivery Consumables,1020,Stockhill,"1,585.70 "
Nottinghamshire Fire and Rescue Service ,102124,East Midlands Councils,East Midlands Councils,Management & Support Services,1,202403,31/05/2023,P6,9106731,"-1,302.00 ","1,302.00 ",4621,Contribution to Partnership Working,2093,Command Suite,"1,085.00 "
Nottinghamshire Fire and Rescue Service ,101782,Derbyshire Fire Authority,Derbyshire Fire Authority,Operational Responses,4,202403,09/06/2023,P6,9106750,"-71,753.93 ","71,753.93 ",5000,Third Party Payments,2005,Fire Control,"59,794.94 "
Nottinghamshire Fire and Rescue Service ,101782,Derbyshire Fire Authority,Derbyshire Fire Authority,Operational Responses,4,202403,09/06/2023,P6,9106769,"-17,629.82 ","17,629.82 ",7002,Legal Services,2005,Fire Control,"2,007.38 "
Nottinghamshire Fire and Rescue Service ,101712,Browne Jacobson LLP,Browne Jacobson LLP,Management & Support Services,1,202403,26/05/2023,P6,9106770,"-1,622.28 ","1,622.28 ",7002,Legal Services,2058,HR Support,633.60 
Nottinghamshire Fire and Rescue Service ,101712,Browne Jacobson LLP,Browne Jacobson LLP,Management & Support Services,1,202403,26/05/2023,P6,9106770,"-1,622.28 ","1,622.28 ",7002,Legal Services,2058,HR Support,718.30 
Nottinghamshire Fire and Rescue Service ,104132,West Yorkshire Pension Fund,West Yorkshire Pension Fund,Management & Support Services,5,202403,06/06/2023,P6,9106775,"-36,632.80 ","36,632.80 ",7500,Treasury Services,2081,Finance,"30,527.33 "
Nottinghamshire Fire and Rescue Service ,101947,Mercer Human Resource Consulting Ltd,Mercer Human Resource Consulting Ltd,Management & Support Services,1,202403,26/05/2023,P6,9106898,"-10,260.00 ","10,260.00 ",7500,Treasury Services,2081,Finance,"8,550.00 "
Nottinghamshire Fire and Rescue Service ,102874,NCC Pension Fund,NCC Pension Fund,Management & Support Services,1,202403,15/06/2023,P6,9106992,-696.00 ,696.00 ,7500,Treasury Services,2081,Finance,260.00 
Nottinghamshire Fire and Rescue Service ,102874,NCC Pension Fund,NCC Pension Fund,Management & Support Services,1,202403,15/06/2023,P6,9106992,-696.00 ,696.00 ,7500,Treasury Services,2081,Finance,320.00 
Nottinghamshire Fire and Rescue Service ,102874,NCC Pension Fund,NCC Pension Fund,Management & Support Services,1,202403,28/04/2023,P6,9106896,"-1,700.40 ","1,700.40 ",7502,External Audit Fees,2081,Finance,"1,417.00 "
Nottinghamshire Fire and Rescue Service ,103589,Hot Pack International,Hot Pack International,Management & Support Services,5,202403,01/06/2023,P6,9106551,"-2,127.60 ","2,127.60 ",B314,Stock,9999,Default,"2,052.00 "
Nottinghamshire Fire and Rescue Service ,102376,Bristol Uniforms Limited,Bristol Uniforms Limited,Management & Support Services,1,202403,30/05/2023,P6,9106557,-765.46 ,765.46 ,B314,Stock,9999,Default,637.88 
Nottinghamshire Fire and Rescue Service ,100357,Eastern Shires Purchasing Organisation,Eastern Shires Purchasing Organisation,Management & Support Services,1,202403,23/05/2023,P6,9106564,"-1,659.42 ","1,659.42 ",B314,Stock,9999,Default,"1,382.85 "
Nottinghamshire Fire and Rescue Service ,100357,Eastern Shires Purchasing Organisation,Eastern Shires Purchasing Organisation,Management & Support Services,1,202403,24/05/2023,P6,9106568,"-1,490.16 ","1,490.16 ",B314,Stock,9999,Default,"1,241.80 "
Nottinghamshire Fire and Rescue Service ,102495,Rosenbauer UK Plc,Rosenbauer UK Plc,Management & Support Services,1,202403,31/05/2023,P6,9106576,-350.64 ,350.64 ,B314,Stock,9999,Default,282.40 
Nottinghamshire Fire and Rescue Service ,102752,K B Packaging,K B Packaging,Management & Support Services,5,202403,06/06/2023,P6,9106663,"-1,170.00 ","1,170.00 ",B314,Stock,9999,Default,975.00 
Nottinghamshire Fire and Rescue Service ,103685,AB Sports Nutrition,AB Sports Nutrition,Management & Support Services,5,202403,02/06/2023,P6,9106668,-273.02 ,273.02 ,B314,Stock,9999,Default,227.52 
Nottinghamshire Fire and Rescue Service ,100268,County Supplies-Sales Ledger,County Supplies-Sales Ledger,Management & Support Services,4,202403,30/05/2023,P6,9106669,-300.72 ,300.72 ,B314,Stock,9999,Default,250.60 
Nottinghamshire Fire and Rescue Service ,102190,Dot Promotional Clothing,Dot Promotional Clothing,Management & Support Services,1,202403,05/06/2023,P6,9106677,-552.00 ,552.00 ,B314,Stock,9999,Default,460.00 
Nottinghamshire Fire and Rescue Service ,102190,Dot Promotional Clothing,Dot Promotional Clothing,Management & Support Services,1,202403,05/06/2023,P6,9106678,-540.00 ,540.00 ,B314,Stock,9999,Default,450.00 
Nottinghamshire Fire and Rescue Service ,102190,Dot Promotional Clothing,Dot Promotional Clothing,Management & Support Services,1,202403,01/06/2023,P6,9106681,-455.40 ,455.40 ,B314,Stock,9999,Default,379.50 
Nottinghamshire Fire and Rescue Service ,102376,Bristol Uniforms Limited,Bristol Uniforms Limited,Management & Support Services,1,202403,06/06/2023,P6,9106689,"-2,153.09 ","2,153.09 ",B314,Stock,9999,Default,"1,794.24 "
Nottinghamshire Fire and Rescue Service ,102376,Bristol Uniforms Limited,Bristol Uniforms Limited,Management & Support Services,1,202403,07/06/2023,P6,9106691,"-1,376.93 ","1,376.93 ",B314,Stock,9999,Default,"1,147.44 "
Nottinghamshire Fire and Rescue Service ,102376,Bristol Uniforms Limited,Bristol Uniforms Limited,Management & Support Services,1,202403,07/06/2023,P6,9106694,"-5,697.89 ","5,697.89 ",B314,Stock,9999,Default,"4,748.24 "
Nottinghamshire Fire and Rescue Service ,100357,Eastern Shires Purchasing Organisation,Eastern Shires Purchasing Organisation,Management & Support Services,1,202403,06/06/2023,P6,9106696,-481.02 ,481.02 ,B314,Stock,9999,Default,400.85 
Nottinghamshire Fire and Rescue Service ,103981,Joseph Gleave and Son Limited -Joseph Gleave and Son (Holdings) Limited,Joseph Gleave and Son Limited -Joseph Gleave and Son (Holdings) Limited,Management & Support Services,5,202403,09/06/2023,P6,9106706,-306.24 ,306.24 ,B314,Stock,9999,Default,255.20 
Nottinghamshire Fire and Rescue Service ,103589,Hot Pack International,Hot Pack International,Management & Support Services,5,202403,05/06/2023,P6,9106713,-479.40 ,479.40 ,B314,Stock,9999,Default,443.52 
Nottinghamshire Fire and Rescue Service ,102376,Bristol Uniforms Limited,Bristol Uniforms Limited,Management & Support Services,1,202403,07/06/2023,P6,9106722,"-13,422.96 ","13,422.96 ",B314,Stock,9999,Default,"11,185.80 "
Nottinghamshire Fire and Rescue Service ,102190,Dot Promotional Clothing,Dot Promotional Clothing,Management & Support Services,1,202403,07/06/2023,P6,9106734,-884.04 ,884.04 ,B314,Stock,9999,Default,736.70 
Nottinghamshire Fire and Rescue Service ,102190,Dot Promotional Clothing,Dot Promotional Clothing,Management & Support Services,1,202403,12/06/2023,P6,9106736,"-2,259.60 ","2,259.60 ",B314,Stock,9999,Default,"1,883.00 "
Nottinghamshire Fire and Rescue Service ,102306,Northern Diver (International) Ltd,Northern Diver (International) Ltd,Management & Support Services,1,202403,08/06/2023,P6,9106742,-289.80 ,289.80 ,B314,Stock,9999,Default,232.00 
Nottinghamshire Fire and Rescue Service ,102376,Bristol Uniforms Limited,Bristol Uniforms Limited,Management & Support Services,1,202403,07/06/2023,P6,9106747,"-10,877.33 ","10,877.33 ",B314,Stock,9999,Default,"9,064.44 "
Nottinghamshire Fire and Rescue Service ,102190,Dot Promotional Clothing,Dot Promotional Clothing,Management & Support Services,1,202403,07/06/2023,P6,9106748,"-1,963.50 ","1,963.50 ",B314,Stock,9999,Default,"1,636.25 "
Nottinghamshire Fire and Rescue Service ,102190,Dot Promotional Clothing,Dot Promotional Clothing,Management & Support Services,1,202403,01/06/2023,P6,9106751,-428.40 ,428.40 ,B314,Stock,9999,Default,357.00 
Nottinghamshire Fire and Rescue Service ,104233,Aero Healthcare Limited,Aero Healthcare Limited,Management & Support Services,5,202403,07/06/2023,P6,9106752,-819.70 ,819.70 ,B314,Stock,9999,Default,683.09 
Nottinghamshire Fire and Rescue Service ,102431,Jafco Tools,Jafco Tools,Management & Support Services,1,202403,08/06/2023,P6,9106755,-572.56 ,572.56 ,B314,Stock,9999,Default,477.13 
Nottinghamshire Fire and Rescue Service ,102309,Walter Frank & Sons Limited,Walter Frank & Sons Limited,Management & Support Services,1,202403,09/06/2023,P6,9106759,-328.20 ,328.20 ,B314,Stock,9999,Default,255.00 
Nottinghamshire Fire and Rescue Service ,102190,Dot Promotional Clothing,Dot Promotional Clothing,Management & Support Services,1,202403,07/06/2023,P6,9106762,-507.84 ,507.84 ,B314,Stock,9999,Default,423.20 
Nottinghamshire Fire and Rescue Service ,102495,Rosenbauer UK Plc,Rosenbauer UK Plc,Management & Support Services,1,202403,12/06/2023,P6,9106763,"-1,865.88 ","1,865.88 ",B314,Stock,9999,Default,"1,540.00 "
Nottinghamshire Fire and Rescue Service ,102376,Bristol Uniforms Limited,Bristol Uniforms Limited,Management & Support Services,1,202403,13/06/2023,P6,9106791,"-1,913.64 ","1,913.64 ",B314,Stock,9999,Default,"1,594.70 "
Nottinghamshire Fire and Rescue Service ,100357,Eastern Shires Purchasing Organisation,Eastern Shires Purchasing Organisation,Management & Support Services,1,202403,13/06/2023,P6,9106828,-654.60 ,654.60 ,B314,Stock,9999,Default,550.60 
Nottinghamshire Fire and Rescue Service ,102376,Bristol Uniforms Limited,Bristol Uniforms Limited,Management & Support Services,1,202403,13/06/2023,P6,9106830,"-2,437.76 ","2,437.76 ",B314,Stock,9999,Default,"2,031.47 "
Nottinghamshire Fire and Rescue Service ,102864,William Sugden & sons Limited,William Sugden & sons Limited,Management & Support Services,5,202403,30/05/2023,P6,9106849,-951.60 ,951.60 ,B314,Stock,9999,Default,793.00 
Nottinghamshire Fire and Rescue Service ,102376,Bristol Uniforms Limited,Bristol Uniforms Limited,Management & Support Services,1,202403,07/06/2023,P6,9106850,"-10,167.79 ","10,167.79 ",B314,Stock,9999,Default,"8,473.16 "
Nottinghamshire Fire and Rescue Service ,102864,William Sugden & sons Limited,William Sugden & sons Limited,Management & Support Services,5,202403,07/06/2023,P6,9106851,-292.80 ,292.80 ,B314,Stock,9999,Default,244.00 
Nottinghamshire Fire and Rescue Service ,102376,Bristol Uniforms Limited,Bristol Uniforms Limited,Management & Support Services,1,202403,16/06/2023,P6,9106862,-933.26 ,933.26 ,B314,Stock,9999,Default,777.72 
Nottinghamshire Fire and Rescue Service ,102306,Northern Diver (International) Ltd,Northern Diver (International) Ltd,Management & Support Services,1,202403,08/03/2023,P6,9106913,"-1,071.00 ","1,071.00 ",B314,Stock,9999,Default,882.00 
Nottinghamshire Fire and Rescue Service ,102218,Kays Medical Ltd,Kays Medical Ltd,Management & Support Services,5,202403,30/01/2023,P6,9106919,"-1,162.01 ","1,162.01 ",B314,Stock,9999,Default,968.34 
Nottinghamshire Fire and Rescue Service ,103981,Joseph Gleave and Son Limited -Joseph Gleave and Son (Holdings) Limited,Joseph Gleave and Son Limited -Joseph Gleave and Son (Holdings) Limited,Management & Support Services,5,202403,16/06/2023,P6,9106922,-344.16 ,344.16 ,B314,Stock,9999,Default,286.80 
Nottinghamshire Fire and Rescue Service ,103981,Joseph Gleave and Son Limited -Joseph Gleave and Son (Holdings) Limited,Joseph Gleave and Son Limited -Joseph Gleave and Son (Holdings) Limited,Management & Support Services,5,202403,16/06/2023,P6,9106931,-313.15 ,313.15 ,B314,Stock,9999,Default,260.96 
Nottinghamshire Fire and Rescue Service ,104020,MPL (Yorkshire) Ltd,MPL (Yorkshire) Ltd,Management & Support Services,5,202403,16/06/2023,P6,9106961,-304.80 ,304.80 ,B314,Stock,9999,Default,254.00 
Nottinghamshire Fire and Rescue Service ,104070,Apollo Signs & Engraving,Apollo Signs & Engraving,Management & Support Services,5,202403,19/06/2023,P6,9107015,-612.00 ,612.00 ,B314,Stock,9999,Default,510.00 
Nottinghamshire Fire and Rescue Service ,102508,Collins Nets Ltd,Collins Nets Ltd,Management & Support Services,1,202403,20/06/2023,P6,9107020,-318.60 ,318.60 ,B314,Stock,9999,Default,258.00 
Nottinghamshire Fire and Rescue Service ,102376,Bristol Uniforms Limited,Bristol Uniforms Limited,Management & Support Services,1,202403,27/06/2023,P6,9107022,"-6,291.24 ","6,291.24 ",B314,Stock,9999,Default,"5,242.70 "
Nottinghamshire Fire and Rescue Service ,102376,Bristol Uniforms Limited,Bristol Uniforms Limited,Management & Support Services,1,202403,27/06/2023,P6,9107026,"-3,624.16 ","3,624.16 ",B314,Stock,9999,Default,"3,020.13 "
Nottinghamshire Fire and Rescue Service ,103981,Joseph Gleave and Son Limited -Joseph Gleave and Son (Holdings) Limited,Joseph Gleave and Son Limited -Joseph Gleave and Son (Holdings) Limited,Management & Support Services,5,202403,30/06/2023,P6,9107029,-320.21 ,320.21 ,B314,Stock,9999,Default,266.84 
Nottinghamshire Fire and Rescue Service ,102864,William Sugden & sons Limited,William Sugden & sons Limited,Management & Support Services,5,202403,28/06/2023,P6,9107034,-439.20 ,439.20 ,B314,Stock,9999,Default,366.00 
Nottinghamshire Fire and Rescue Service ,100299,FireAngel Safety Technology Limited,FireAngel Safety Technology Limited,Management & Support Services,1,202403,28/06/2023,P6,9107036,"-15,600.00 ","15,600.00 ",B314,Stock,9999,Default,"13,000.00 "
Nottinghamshire Fire and Rescue Service ,104064,Redbrick Print Solutions LLP,Redbrick Print Solutions LLP,Management & Support Services,5,202403,28/06/2023,P6,9107037,-450.00 ,450.00 ,B314,Stock,9999,Default,375.00 
Nottinghamshire Fire and Rescue Service ,102190,Dot Promotional Clothing,Dot Promotional Clothing,Management & Support Services,1,202403,20/06/2023,P6,9107041,-357.00 ,357.00 ,B314,Stock,9999,Default,297.50 
Nottinghamshire Fire and Rescue Service ,102078,Thomas Kneale & Co Ltd,Thomas Kneale & Co Ltd,Management & Support Services,1,202403,26/06/2023,P6,9107042,"-1,166.40 ","1,166.40 ",B314,Stock,9999,Default,972.00 
Nottinghamshire Fire and Rescue Service ,101867,Nottinghamshire Police and Crime Commissioner,Nottinghamshire Police and Crime Commissioner,Management & Support Services,4,202403,03/02/2023,P6,9106937,"-64,559.47 ","64,559.47 ",C101,Building Works,4102,Strategic New Build Projects,"64,559.47 "
Nottinghamshire Fire and Rescue Service ,101867,Nottinghamshire Police and Crime Commissioner,Nottinghamshire Police and Crime Commissioner,Management & Support Services,4,202403,16/02/2023,P6,9106938,"-9,318.19 ","9,318.19 ",C101,Building Works,4102,Strategic New Build Projects,"9,318.19 "
Nottinghamshire Fire and Rescue Service ,102979,Planet IT Limited,Planet IT Limited,Management & Support Services,5,202403,20/06/2023,P6,9106936,"-2,087.81 ","2,087.81 ",C200,Hardware,4300,ICT Capital Programme,"1,739.84 "
Nottinghamshire Fire and Rescue Service ,103483,Risual Limited,Risual Limited,Management & Support Services,5,202403,31/05/2023,P6,9106987,"-4,681.98 ","4,681.98 ",C200,Hardware,4300,ICT Capital Programme,"3,901.65 "
Nottinghamshire Fire and Rescue Service ,103730,J A Burns t/a squircle IT,J A Burns t/a squircle IT,Management & Support Services,5,202403,13/03/2023,P6,9106579,"-10,642.50 ","10,642.50 ",C202,Consultancy and Services,4102,Strategic New Build Projects,"8,868.75 "
Nottinghamshire Fire and Rescue Service ,103667,NTA Monitor Ltd,NTA Monitor Ltd,Management & Support Services,5,202403,22/05/2023,P6,9106700,"-10,200.00 ","10,200.00 ",C202,Consultancy and Services,4300,ICT Capital Programme,"8,500.00 "
Nottinghamshire Fire and Rescue Service ,103667,NTA Monitor Ltd,NTA Monitor Ltd,Management & Support Services,5,202403,18/04/2023,P6,9106780,"-4,080.00 ","4,080.00 ",C202,Consultancy and Services,4300,ICT Capital Programme,"3,400.00 "
Nottinghamshire Fire and Rescue Service ,103094,Draeger Safety UK Limited,Draeger Safety UK Limited,Management & Support Services,5,202403,26/06/2023,P6,9107046,"-47,880.00 ","47,880.00 ",C301,Operational Equipment - Purchase,4200,Equipment Capital Programme,"39,900.00 "
Nottinghamshire Fire and Rescue Service ,104132,West Yorkshire Pension Fund,West Yorkshire Pension Fund,Management & Support Services,5,202403,27/06/2023,P6,9106991,"-6,205.09 ","6,205.09 ",P204,Annual Allowance - scheme pays,5999,Pension Fund,"6,205.09 "
,***Note:,,,,,,,,,,,,,,,
,"***The report shows the payment in its original form. This means disaggregating many invoices into individual component payments many of which will be less than £250 in their own right. This explains why you will see many of the amounts showing less than £250. They were, however, paid as part of an invoice of £250 or more.

**** The Invoice date is the date issued on the invoice. This date may fall out of the date range for the report. In most cases this is due to the invoice being received  late.",,,,,,,,,,,,,,,